Workbook

Sheet Client Demographics
A1: Profile for Foster Care Support Needs Assessment Children
A3: Name of Child (Legal Name) | J3: Date of Birth | N3: Age | O3: =ClientAge -> 
A4: Prime # | J4: Height | N4: Weight
A5: Did the individual participate in the Assessment? | J5: Gender
A6: Is this an early process assessment? | L6: Date of Assessment
A7: Provider Name | N7: Phone
A8: Provider Address - Street
A9: Provider Address - City, State, Zip
A10: CDDP Services Coordinator | I10: CDDP/County of Case Mgt. | N10: Phone
A11: Assessor's Name | N11: Phone
A12: Name of Assessment Participants | I12: Relationship to Individual | N12: Phone
A13: 1.
A14: 2.
A15: 3.
A16: 4.
A17: 5.
A18: 6.
A20: Assessment Start Time | F20: Assessment End Time | K20: Duration of Assessment | O20: =IF(D20 = "","",IF(I20="","",24*(IF(D20>I20,I20+1-D20,I20-D20)))) -> 
A26: SNAP-Child version 25.07C-01

Sheet ADLs
A2: AMBULATION / MOBILITY IN THE HOME
A3: =IF('Raw Scoring'!B2=5,"2:1 Review","") -> 
B4: This section assesses the individual's physical ability to move around in the individual's home with or without mechanical aids. Choose the option that most accurately reflects the supports required by the individual, which are not due to behaviors. For children age 4 years and older, check an option only if the support needed is due to the child's disability. Do not check an option for children under age 4 years.
B6: Independent or Age Appropriate Supports Provided: The individual can ambulate in familiar surroundings without assistance from another individual with or without mechanical aids. | C6: ADL1 | D6: HomeAmb1
B7: Partial Assist: The individual is dependent on assistance from another person for some aspect of ambulation/mobility. | C7: ADL1 | D7: HomeAmb2
B8: Full Assist: The individual is dependent on assistance from another person for all aspects of ambulation/mobility. | C8: ADL1 | D8: HomeAmb3
B9: Two-Person Assist: The individual requires assistance of two people for all aspects of ambulation/mobility. Documentation of caregivers' schedule and duties are required. | C9: ADL1 | D9: HomeAmb4
A10: NOTES
A14: AMBULATION / MOBILITY IN THE COMMUNITY
A15: =IF('Raw Scoring'!B3=5,"2:1 Review","") -> 
B16: This section assesses the individual's physical ability to move around in the individual's community with or without mechanical aids. Choose the option that most accurately reflects the supports required by the individual, which are not due to behaviors. For children age 5 years and older, check an option only if the support needed is due to the child's disability. Do not check an option for children under age 5 years.
B18: Independent or Age Appropriate Supports Provided: The individual can ambulate in familiar surroundings without assistance from another individual with or without mechanical aids. | C18: ADL2 | D18: ComAmb1
B19: Partial Assist: The individual is dependent on assistance from another person for some aspect of ambulation/mobility. | C19: ADL2 | D19: ComAmb2
B20: Full Assist: The individual is dependent on assistance from another person for all aspects of ambulation/mobility. | C20: ADL2 | D20: ComAmb3
B21: Two-Person Assist: The individual requires assistance of two people for all aspects of ambulation/mobility. Documentation of caregivers' schedules and duties are required. | C21: ADL2 | D21: ComAmb4
A22: NOTES
A26: TRANSFERRING / POSITIONING
A27: =IF('Raw Scoring'!B4=5,"2:1 Review","") -> 
B28: This section assesses the individual's physical ability to transfer to and from positioning equipment, bathtub, toilet, chair, bed, wheelchair, auto, etc. Choose the option that most accurately reflects the supports required by the individual, which are not due to behaviors. For children age 4 years and older, check an option only if the support needed is due to the child's disability. Do not check an option for children under age 4 years.
B30: Independent or Age Appropriate Supports Provided: The individual can transfer without assistance from another individual with or without mechanical aids. | C30: ADL3 | D30: Trans1
B31: Partial Assist: The individual can perform the transfer with or without mechanical aids, but requires some assistance by another person for some aspect of transferring. | C31: ADL3 | D31: Trans2
B32: Full Assist: The individual is dependent on another person for all aspects of transferring and positioning. | C32: ADL3 | D32: Trans3
B33: Two-Person Assist: The individual requires assistance of two people for all aspects of transferring and positioning. Documentation of caregivers' schedule and duties are required. | C33: ADL3 | D33: Trans4
A34: NOTES
A38: EATING / DRINKING
B40: This section assesses the individual's physical ability to safely eat or drink, either orally or via tube, and maintain their nutrition and hydration in their home or community. Choose the option that most accurately reflects the supports required by the individual, which are not due to behaviors. For children age 4 years and older, check an option only if the support needed is due to the child's disability. Do not check an option for children under age 4 years, unless the child needs the support of Full Assist - constant/aspiration risk.
B42: Independent or Age Appropriate Supports Provided: The individual can eat and drink safely and requires no assistance or monitoring while eating or drinking. | C42: ADL4 | D42: Eatdrink1
B43: Partial Assist - food cut up: The individual requires intermittent assistance and monitoring while eating and drinking, and may require their food to be cut up for them by another person. | C43: ADL4 | D43: Eatdrink2
B44: Partial Assist - intermittent: The individual requires intermittent assistance and monitoring with eating and drinking but requires food or fluid texture to be altered, per doctor's order, by another person. * | C44: ADL4 | D44: Eatdrink3
B45: Full Assist - constant: The individual requires constant assistance and monitoring with eating and drinking to maintain proper nutrition and hydration but does not require food or fluid texture to be altered. | C45: ADL4 | D45: Eatdrink4
B46: Full Assist - constant/aspiration risk: The individual requires constant assistance and monitoring with eating and drinking to maintain proper nutrition and hydration, and/or to prevent the individual from gagging, choking, and aspirating. The individual may require alteration in food or fluid texture for safety. The individual may require medication administration through their tube feeding route. * | C46: ADL4 | D46: Eatdrink5
B47: *See individual indicators for a Nursing Assessment Referral
A48: NOTES
A52: TOILETING
B54: This section assesses the individual's ability to independently use the toilet (including commode, bedpan, and/or urinal), to cleanse after elimination and to adjust clothing. Choose the option that most accurately reflects the supports required by the individual, which are not due to behaviors. For children age 4 years and older, check an option only if the support needed is due to the child's disability. Do not check an option for children under age 4 years.
B56: Independent or Age Appropriate Supports Provided: The individual can manage toileting independently and may use mechanical aids, if required. Mark independent if not applicable. | C56: ADL5 | D56: Toilet1
B57: Partial Assist - cueing: The individual requires verbal cueing and monitoring to complete toileting activities. | C57: ADL5 | D57: Toilet2
B58: Partial Assist - assistance: The individual requires assistance from another person for some aspects of using the toilet for elimination. | C58: ADL5 | D58: Toilet3
B59: Full Assist: The individual is dependent on another person, even with mechanical aids, to assist with some or all parts of using the toilet for elimination. | C59: ADL5 | D59: Toilet4
A60: NOTES
A64: BLADDER CONTROL
B65: Care for Incontinence
B67: This section assesses the individual's ability to care for incontinence of bladder. Choose the option that most accurately reflects the supports required by the individual, which are not due to behaviors. For children age 3 years and older, check an option only if the support needed is due to the child's disability. Do not check an option for children under age 3 years.
B69: Independent or Age Appropriate Supports Provided: The individual is independent with incontinence care. Mark independent if not applicable. | C69: ADL6 | D69: Bladder1
B70: Partial Assist: The individual requires assistance from another person to manage incontinency, catheter, or sheath changes, including assistance changing incontinence garments, soiled clothing or equipment. * | C70: ADL6 | D70: Bladder2
B71: Full Assist: The individual is totally incontinent and dependent on another person for incontinence or catheter care. * | C71: ADL6 | D71: Bladder3
B72: *See individual indicators for a Nursing Assessment Referral
A73: NOTES
A77: BOWEL CONTROL
B78: Care for Incontinence
B80: This section assesses the individual's ability to care for incontinence of the bowel. Choose the option that most accurately reflects the supports required by the individual, which are not due to behaviors. For children age 3 years and older, check an option only if the support needed is due to the child's disability. Do not check an option for children under age 3 years.
B82: Independent or Age Appropriate Supports Provided: The individual is independent with bowel control issues, whether the individual is continent, incontinent or has an ostomy. Mark independent if not applicable. | C82: ADL7 | D82: Bowel1
B83: Partial Assist: The individual requires assistance managing incontinence of the bowel, changing incontinence garments, soiled clothing or ostomy care. * | C83: ADL7 | D83: Bowel2
B84: Full Assist: The individual is incontinent of the bowel and dependent on another person to complete all incontinence care. * | C84: ADL7 | D84: Bowel3
B85: *See individual indicators for a Nursing Assessment Referral
A86: NOTES
A90: MENSES
B92: This section assesses the individual's ability to care for feminine hygiene needs during menses. Choose the option that most accurately reflects the supports required by the individual, which are not due to behaviors.
B94: Not Applicable | C94: ADL8 | D94: Menses1
B95: Independent: The individual can manage her own feminine hygiene/menses care. | C95: ADL8 | D95: Menses2
B96: Partial Assist: The individual requires monitoring and some assistance from another person for some aspects of feminine hygiene/menses care. | C96: ADL8 | D96: Menses3
B97: Full Assist: The individual is dependent on another person, to assist with feminine hygiene/menses care. | C97: ADL8 | D97: Menses4
A98: NOTES
A102: BATHING
A103: =IF('Raw Scoring'!B10=5,"2:1 Review","") -> 
B104: This section assesses the individual's ability to bathe and wash their hair. Choose the option that most accurately reflects the supports required by the individual, which are not due to behaviors. For children age 4 years and older, check an option only if the support needed is due to the child's disability. Do not check an option for children under age 4 years.
B106: Independent or Age Appropriate Supports Provided: The individual can bathe and wash hair without assistance or supervision. | C106: ADL9 | D106: Bath1
B107: Partial Assist: The individual requires minor physical assistance, standby monitoring, and/or cueing from another person to bathe and wash their hair. | C107: ADL9 | D107: Bath2
B108: Full Assist: The individual is dependent on assistance from another person to bathe them and wash their hair. | C108: ADL9 | D108: Bath3
B109: Two-Person Assist: The individual requires assistance of two people while bathing and washing their hair. Documentation of caregivers' schedule and duties are required. | C109: ADL9 | D109: Bath4
A110: NOTES
A114: ORAL HYGIENE
B116: This section assesses the individual's ability to clean and care for the individual's teeth, gums, and/or dentures in a healthy and safe manner. Choose the option that most accurately reflects the supports required by the individual, which are not due to behaviors. For children age 5 years and older, check an option only if the support needed is due to the child's disability. Do not check an option for children under age 5 years.
B118: Independent or Age Appropriate Supports Provided: The individual can manage oral hygiene, without reminders, assistance or supervision. | C118: ADL10 | D118: Oral1
B119: Partial Assist: The individual requires assistance with oral hygiene, which may include prompting and cues to complete some aspect of oral hygiene activities. | C119: ADL10 | D119: Oral2
B120: Full Assist: The individual requires assistance from another person to complete oral hygiene activities. | C120: ADL10 | D120: Oral3
A121: NOTES
A125: DRESSING & HAIR CARE
B127: This section assesses the individual's ability to dress, undress and/or comb hair. Choose the option that most accurately reflects the supports required by the individual, which are not due to behaviors. For children age 4 years and older, check an option only if the support needed is due to the child's disability. Do not check an option for children under age 4 years.
B129: Independent or Age Appropriate Supports Provided: The individual can dress, undress and/or comb hair independently or with reminding. | C129: ADL11 | D129: Dress1
B130: Partial Assist: The individual requires assistance from another person, which may include frequent monitoring and cueing for completing some aspect of dressing, undressing and/or combing hair. | C130: ADL11 | D130: Dress2
B131: Full Assist: The individual requires full assistance from another person for ALL aspects of dressing, undressing and/or combing hair. | C131: ADL11 | D131: Dress3
A132: NOTES
A136: SHAVING
B138: This section assesses the individual's ability to shave. Choose the option that most accurately reflects the supports required by the individual, which are not due to behaviors.
B140: Independent or Age Appropriate Supports Provided: The individual can shave independently or with reminding. | C140: ADL12 | D140: Shave1
B141: Partial Assist: The individual requires assistance from another person, which may include frequent monitoring and cueing for completing some aspect of shaving. | C141: ADL12 | D141: Shave2
B142: Full Assist: The individual requires total assistance from another person to shave. | C142: ADL12 | D142: Shave3
A143: NOTES

Sheet Medical Needs
A2: COMMUNICATION - EXPRESSIVE
B4: This section assesses the individual's ability to verbally, or through adaptive means, understandably express to others their needs in their home or community. Choose the option that most accurately reflects the supports required by the individual. For children age 2 years and older check an option only if the support needed is due to the child's disability. Do not check an option for children under age 2 years.
B6: Independent or Age Appropriate Supports Provided: The individual can communicate their needs with or without the use of adaptive equipment and requires no assistance from another person. | C6: Medical1 | D6: Commexp1
B7: Partial Assist: The individual requires assistance from another person intermittently to express their needs so others will understand them, with or without adaptive communication devices or systems. | C7: Medical1 | D7: Commexp2
B8: Full Assist: The individual requires ongoing assistance from another person every day to express their needs so others will understand them, with or without adaptive communication devices or systems. | C8: Medical1 | D8: Commexp3
A9: NOTES
A13: COMMUNICATION - RECEPTIVE
B15: This section assesses the individual's ability to understand information and directions from another person. Choose the option that most accurately reflects the supports required by the individual. For children age 2 years and older check an option only if the support needed is due to the child's disability. Do not check an option for children under age 2 years.
B17: Independent or Age Appropriate Supports Provided: The individual can understand information conveyed to them. | C17: Medical2 | D17: Commrec1
B18: Partial Assist: The individual requires intermittent assistance from another person to provide guidance, reminders and direction in order to understand information or directions from another person. | C18: Medical2 | D18: Commrec2
B19: Full Assist: The individual requires continual assistance from another person to provide guidance, reminders and direction in order to understand information or directions from another person. | C19: Medical2 | D19: Commrec3
A20: NOTES
A24: SAFETY
B26: This section assesses the individual's ability to recognize, understand and protect themselves from potential hazards or harmful situations in their home or community, which are not due to behaviors. Choose the option that most accurately reflects the supports required by the individual.
B28: Independent or Age Appropriate Supports Provided: The individual requires no assistance from another person. | C28: Medical3 | D28: Safe1
B29: Partial Assist: The individual requires intermittent assistance/monitoring from another person to recognize, understand and protect themselves from hazards or harmful situations or people at home or in the community. | C29: Medical3 | D29: Safe2
B30: Full Assist: The individual requires continual assistance/monitoring to recognize, understand and protect themselves from hazards or harmful situations or people at home or in the community. | C30: Medical3 | D30: Safe3
A31: NOTES
A35: FIRE EVACUATION
B37: This section assesses the individual's ability to evacuate the home in an emergency. Choose the option that most accurately reflects the supports required by the individual.
B39: Independent or Age Appropriate Supports Provided: The individual evacuates with no assistance. | C39: Medical4 | D39: Fire1
B40: Partial Assist: The individual requires verbal assistance from another person to safely evacuate during an emergency. | C40: Medical4 | D40: Fire2
B41: Full Assist: The individual must be physically assisted by another person in order to safely evacuate during an emergency. | C41: Medical4 | D41: Fire3
A42: NOTES
A46: MEDICATION MANAGEMENT SUPPORTS - ORAL
B48: This section assesses the individual's oral medication regimen. Choose the option that most accurately reflects the supports required by the individual. For children, check an option only if medication is due to the child's disability or disability-related medical condition(s).
B50: Independent or Age Appropriate Supports Provided: Individual does not take any medication or self administers medication with or without provider oversight. | C50: Medical5 | D50: Medoral1
B51: Full Assist - 1 to 4: The individual's medication regimen is totally administered and monitored by another person for their 1 to 4 or less medications. | C51: Medical5 | D51: Medoral2
B52: Full Assist - 5 or 6: The individual's medication regimen is totally administered and monitored by another person for their 5 or 6 medications.* | C52: Medical5 | D52: Medoral3
B53: Full Assist - 7 or more: The individual's medication regimen is totally administered and monitored by another person for their 7 or more medications.* | C53: Medical5 | D53: Medoral4
B54: *See individual indicators for a Nursing Assessment Referral
A55: NOTES
A59: MEDICATION MANAGEMENT SUPPORTS - INHALANTS, TOPICALS, SUPPOSITORIES
B61: This section assesses the individual's inhalants, topicals and suppositories regimen. Choose the option that most accurately reflects the supports required by the individual.
B63: Independent or Age Appropriate Supports Provided: Individual does not require any inhalants, topicals or suppository regimen or self administers medication, with or without provider support. | C63: Medical6 | D63: Medinhale1
B64: Partial Assist: The individual's inhalants, topicals, suppository regimen can be administered by the individual, but some aspects must be monitored or completed by another person.* | C64: Medical6 | D64: Medinhale2
B65: Full Assist: The individual's inhalants, topicals, suppository regimen must be administered by another person.* | C65: Medical6 | D65: Medinhale3
B66: *See individual indicators for a Nursing Assessment Referral
A67: NOTES
A71: MEDICATION MANAGEMENT SUPPORTS - INJECTIONS
B73: This section assesses the individual's medication regimen administered by injecting a medication. Choose the option that most accurately reflects the supports required by the individual.
B75: Independent or Age Appropriate Supports Provided: The individual does not have any medication administered by injection or self-administers medication, with or without provider support. | C75: Medical7 | D75: Medinject1
B76: Partial Assist: The individual administers their regimen of injection by themselves, but some aspects must be monitored or completed by another person. (e.g. insulin) * | C76: Medical7 | D76: Medinject2
B77: Full Assist: The individual's regimen by injection is totally administered and monitored by another person. (e.g. insulin). * | C77: Medical7 | D77: Medinject3
B78: *See individual indicators for a Nursing Assessment Referral
A79: NOTES
A83: HEALTH MANAGEMENT SUPPORTS - GENERAL
B85: This section assesses the individual's ability to identify and self-direct their physical health supports. This includes their ability to assist with routine health care decisions and treatments that are not ADL or Medication Management Supports. Choose the option that most accurately reflects the supports required by the individual.
B87: Independent or Age Appropriate Supports Provided: The individual can identify and communicate pain, discomfort or medical needs. The individual can access health care in the community independently and follow through with prescribed medication, treatments and dietary requirements. Check Independent for all children under the age of 15 years and move to the next Health Management section. | C87: Medical8 | D87: Healthsup1
B88: Individual-Directed Care: The individual can fully self-direct or manage their care, even though the individual is not physically able to provide their own care. Care that may be individually directed includes physical care, medication administration, treatments and dietary requirements. | C88: Medical8 | D88: Healthsup2
B89: Partial Assist and Monitoring: The individual has difficulty recognizing or explaining if they are having pain, discomfort, and/or they require assistance with medication and routine medical/health care needs therefore requiring periodic or weekly monitoring. They may require assistance with implementation of medical interventions, treatments or dietary requirements. | C89: Medical8 | D89: Healthsup3
B90: Full Assist: The individual's health care is managed through a community health care team, which may include the individual's provider and health care professionals such as primary care physicians, dentist, dietician and psychiatrist. The individual is not able to explain their health care needs or implement the care plan as outlined by the physician, and has current routine medical/health care order(s) that require daily monitoring and assistance to implement medical interventions, treatments and dietary requirements. * | C90: Medical8 | D90: Healthsup4
B91: *See individual indicators for a Nursing Assessment Referral
A92: NOTES
A96: COMPLEX HEALTH MANAGEMENT SUPPORTS
A97: =IF('Raw Scoring'!Q11=5,"2:1 Review","") -> 
B98: This section assesses the individual's ability to self-direct their medical care, intervention or treatment needs for complex medical condition(s) which impact all aspects of their care. This section also assesses the individual's ability to assist with, explain and recognize their need for medical care, interventions or treatments for their complex condition(s). Choose the option that most accurately reflects the supports required by the individual.
B100: Not Applicable: The individual does not have complex medical conditions. | C100: Medical9 | D100: Healthcomp1
B101: Independent: The individual can identify and communicate pain, discomfort and/or complex nursing and medical needs; access health care in the community independently and follow through with prescribed medication and treatment plan and dietary requirements. Their health care needs are stable and predictable. | C101: Medical9 | D101: Healthcomp2
B102: Individual-Directed Care: The individual can fully self-direct or manage their complex medical condition even though they are not physically able to perform the care. Care that may be directed by the individual includes necessary medical care, medications, treatments, activities of daily living, nutrition and nursing interventions. Their health care needs are stable and predictable. | C102: Medical9 | D102: Healthcomp3
B103: Partial Assist - weekly: The individual has difficulty explaining and does not recognize the need for care, intervention or treatments for their condition(s). They require monitoring and direct assistance throughout the week by another person to provide their necessary medical care. Their health care needs are stable and predictable.* | C103: Medical9 | D103: Healthcomp4
B104: Partial Assist - 1 to 3 per day: The individual has difficulty explaining and does not recognize the need for care, intervention or treatments for their condition(s). They require monitoring and direct assistance 1 to 3 times throughout the day by another person to provide their necessary medical care. Their health care needs are stable and predictable. * | C104: Medical9 | D104: Healthcomp5
B105: Full Assist - more than 3 per day: The individual is unable to explain or does not recognize the need for care, intervention or treatments for their condition(s). They require frequent monitoring and direct assistance more than 3 times throughout the day by another person to provide the necessary medical care. Their health care needs are stable and predictable.* Documentation of caregivers' schedule and duties required. | C105: Medical9 | D105: Healthcomp6
B106: Full Assistance and Monitoring - exclusive focus: The individual is unable to communicate or recognize the need for care, intervention or treatments for their condition(s). They require exclusive focus by another person for continuous observation and physical assessment throughout the day to provide necessary medical care, medications, treatments, activities of daily living, nutrition and nursing interventions. This individual requires the establishment of the nursing process to outline treatment plans and establish parameters of care. Their medical condition is unstable. * Documentation of caregivers' schedule and duties required. | C106: Medical9 | D106: Healthcomp7
B107: Two-Person Assist: Mark this box when the individual has planned medical treatments that require exclusive focus with physical intervention by 2 people to complete the treatments that assure the health and safety of the individual between the hours of 5 A.M. and 10 P.M. * & *** Documentation of caregivers' schedules and duties required. | C107: Medical9 | D107: Healthcomp2to1
B108: * See individual indicators for a Nursing Assessment Referral *** OIS training, level IF-M. for physical intervention during a medical procedure is required.
A109: NOTES
A113: EQUIPMENT
B115: This section records the individual's use of equipment essential to the individual. Check the boxes for equipment used by the individual.
B117: Not applicable: The individual does not use any of the equipment listed below. | C117: Mobility | D117: Mobility1
B118: Cane | C118: Mobility | D118: Mobility2
B119: Leg braces | C119: Mobility | D119: Mobility3
B120: Walker | C120: Mobility | D120: Mobility4
B121: Ankle or foot orthotics | C121: Mobility | D121: Mobility5
B122: Arm splints | C122: Mobility | D122: Mobility6
B123: Adaptive eating equipment (not tube feeding equipment) | C123: Mobility | D123: Mobility7
B125: Not applicable: The individual does not use any of the equipment listed below. | C125: Bed | D125: Bed1
B126: Hospital bed | C126: Bed | D126: Bed2
B127: Grab bars by bed | C127: Bed | D127: Bed3
B128: Hanging bar above bed | C128: Bed | D128: Bed4
B130: Not applicable: The individual does not use any of the equipment listed below. | C130: Bath | D130: Bath1
B131: Shower chair | C131: Bath | D131: Bath2
B132: Grab bars in bath room | C132: Bath | D132: Bath3
B133: Shower gurney | C133: Bath | D133: Bath4
B135: Not applicable: The individual does not use any of the equipment listed below. | C135: Comm | D135: Comm1
B136: Non electronic communication boards | C136: Comm | D136: Comm2
B137: Electronic communication boards | C137: Comm | D137: Comm3
A139: EQUIPMENT - Continued
B142: Not applicable: The individual does not use any of the equipment listed below. | C142: Transfer | D142: Transfer1
B143: Hoyer lift | C143: Transfer | D143: Transfer2
B144: Transfer equipment (transfer board) | C144: Transfer | D144: Transfer3
B146: Not applicable: The individual does not use any of the equipment listed below. | C146: Motion | D146: Motion1
B147: Body jacket | C147: Motion | D147: Motion2
B148: Manual wheel chair | C148: Motion | D148: Motion3
B149: Electric power wheel chair | C149: Motion | D149: Motion4
B150: Prone stander | C150: Motion | D150: Motion5
B151: Sidelyer | C151: Motion | D151: Motion6
B153: Not applicable: The individual does not use any of the equipment listed below. | C153: Mechan | D153: Mechan1
B154: Specialized tube feeding equipment* | C154: Mechan | D154: Mechan2
B155: Nebulizers* | C155: Mechan | D155: Mechan3
B156: C-PAP* | C156: Mechan | D156: Mechan4
B157: Oxygen | C157: Mechan | D157: Mechan5
B158: Ventilator | C158: Mechan | D158: Mechan6
B159: Pulse oxymeter* | C159: Mechan | D159: Mechan7
B160: Heart monitor* | C160: Mechan | D160: Mechan8
B161: Suctioning equipment | C161: Mechan | D161: Mechan9
B162: Vegal stimulator | C162: Mechan | D162: Mechan10
B163: Diabetic insulin pump | C163: Mechan | D163: Mechan11
B164: Baclofen pump | C164: Mechan | D164: Mechan12
B165: Prosthetics | C165: Mechan | D165: Mechan13
B166: * See individual indicators for a Nursing Assessment Referral
A167: NOTES

Sheet Nursing Assessment Indicators

Sheet Nighttime Needs
A2: NIGHTTIME NEEDS - MEDICAL SUPPORTS
A3: =IF('Raw Scoring'!G2=5,"2:1 Review","") -> 
B4: This section assesses the individual's need for MEDICAL supports and monitoring during nighttime hours. Choose the option that most accurately reflects the supports required by the individual.
B6: Not Applicable | C6: Nighttime1 | D6: Nightmed1
B7: Independent: The individual may or may not have difficulty sleeping but requires no assistance from another person during the hours of 10:00 P.M. and 5:00 A.M. | C7: Nighttime1 | D7: Nightmed2
B8: Individual Requires Nighttime Assistance - monthly: The individual requires occasional monitoring throughout the month between the hours of 10:00 P.M. and 5:00 A.M. | C8: Nighttime1 | D8: Nightmed3
B9: Individual Requires Nighttime Assistance - weekly: The individual requires occasional monitoring throughout the week between the hours of 10:00 P.M. and 5:00 A.M. | C9: Nighttime1 | D9: Nightmed4
B10: Individual Requires Nighttime Assistance - intermittent nightly: The individual requires intermittent nightly assistance from another person 1 to 3 times per night between the hours of 10:00 P.M. and 5:00 A.M. Assistance includes physical assistance and/or treatments. | C10: Nighttime1 | D10: Nightmed5
B11: Individual Requires Nighttime Assistance - ongoing nightly: The individual requires ongoing assistance from another person available to respond between the hours of 10:00 P.M. and 5:00 A.M. Assistance includes physical assistance and/or repositioning, but exclusive focus is not required throughout the night. | C11: Nighttime1 | D11: Nightmed6
B12: Individual Requires Nighttime 1:1 Assistance: The individual requires ongoing 1:1 exclusive focus assistance from another person between the hours of 10:00 P.M. and 5:00 A.M. Assistance can include: prompting, physical assistance, repositioning, medical monitoring and implementation of medical treatments. Documentation of caregivers' schedule and duties are required. | C12: Nighttime1 | D12: Nightmed7
B13: Individual Requires Nighttime 2:1 Assistance: The individual requires ongoing 2:1 exclusive focus assistance from 2 people between the hours of 10:00 P.M. and 5:00 A.M. Assistance can include prompting, physical assistance, repositioning and implementation of medical treatments. Documentation of caregivers' schedules and duties are required. | C13: Nighttime1 | D13: Nightmed8
A14: NOTES
A18: NIGHTTIME NEEDS - BEHAVIOR SUPPORTS
A19: =IF('Raw Scoring'!G3=5,"2:1 Review","") -> 
B20: This section assesses the individual's need for BEHAVIOR supports and monitoring during nighttime hours. Choose the option that most accurately reflects the supports required by the individual.
B22: Not Applicable | C22: Nighttime2 | D22: NightBehav1
B23: Independent: The individual may or may not have difficulty sleeping but requires no assistance from another person during the hours of 10:00 P.M. and 5:00 A.M. | C23: Nighttime2 | D23: NightBehav2
B24: Individual Requires Nighttime Assistance - monthly: The individual requires occasional monitoring throughout the month between the hours of 10:00 P.M. and 5:00 A.M. | C24: Nighttime2 | D24: NightBehav3
B25: Individual Requires Nighttime Assistance - weekly: The individual requires occasional verbal cues or monitoring throughout the week between the hours of 10:00 P.M. and 5:00 A.M. | C25: Nighttime2 | D25: NightBehav4
B26: Individual Requires Nighttime Assistance - intermittent nightly: The individual requires intermittent nightly assistance from another person 1 to 3 times per night between the hours of 10:00 P.M. and 5:00 A.M. Assistance includes any behavior supports. | C26: Nighttime2 | D26: NightBehav5
B27: Individual Requires Nighttime Assistance - ongoing nightly: The individual requires ongoing assistance from another person available to respond between the hours of 10:00 P.M. and 5:00 A.M. Assistance includes any behavior supports, but exclusive focus is not required throughout the night. | C27: Nighttime2 | D27: NightBehav6
B28: Individual Requires Nighttime 1:1 Assistance: The individual requires ongoing 1:1 exclusive focus from another person between the hours of 10:00 P.M. and 5:00 A.M. Assistance can include prompting, physical interventions, monitoring and behavior supports and interventions. Documentation of caregivers' schedule and duties are required. | C28: Nighttime2 | D28: NightBehav7
B29: Individual Requires Nighttime 2:1 Assistance: The individual requires ongoing 2:1 exclusive focus from 2 people between the hours of 10:00 P.M. and 5:00 A.M. Assistance can include prompting, physical interventions, monitoring and/or behavior supports and interventions. Documentation of caregivers' schedules and duties are required. | C29: Nighttime2 | D29: NightBehav8
A30: NOTES

Sheet Behavior Needs
A2: BEHAVIORAL SUPPORTS - NO FORMAL PLAN - SUPERVISON AND MONITORING
A3: Supervision and monitoring for behavior and mental health
B5: This section assesses the individual's ability to function in a home and community environment with behavioral supports from another person to maintain safety of self and/or others. These behaviors do not require a formal behavior support plan and are not addressed in a formal BSP. Choose the option that most accurately reflects the supports required by the individual.
B7: Not Applicable or Age-Appropriate Supervision: The individual does not require supervision or monitoring from another person for behavioral issues or, for a child, age-appropriate supervision or monitoring is provided. | C7: Behavior1 | D7: BehavMin1
B8: Redirecting: The individual has a transition plan, ISP or mental health guidelines that require redirection during waking hours, to assure the safety of the individual. This behavior does not require a formal behavior support plan and is not addressed in any formal BSP. | C8: Behavior1 | D8: BehavMin2
B9: Within Hearing or Visual Distances: The individual has a transition plan, ISP or mental health guidelines that require supervision for safety, within hearing distance or visual range, during waking hours. This behavior does not require a formal behavior support plan and is not addressed in any formal BSP. | C9: Behavior1 | D9: BehavMin3
B10: Within Hearing and Visual Distances: The individual has a transition plan, ISP or mental health guidelines requiring visual range and hearing distance supervision during waking hours. This behavior does not require a formal behavior support plan and is not addressed in any formal BSP. | C10: Behavior1 | D10: BehavMin4
A11: NOTES
A15: BEHAVIORAL SUPPORTS - PLANS - HOME AND COMMUNITY
A16: Supervision, monitoring and plans for behavior and mental health
B18: This section assesses the individual's ability to function in a home and community environment with behavioral supports and intervention from another person to maintain safety of self and/or others. Choose the option that most accurately reflects the supports required by the individual.
B20: Not Applicable: The individual does not have behavioral or mental health needs that require a plan. | C20: Behavior2 | D20: Behavform1
B21: Behavior Plan - No Physical Interventions: The individual has a behavior support need that may require a formal behavior plan, which does not include physical intervention(s). * | C21: Behavior2 | D21: Behavform2
B22: Behavior Plan: The individual has a behavior support need that requires a formal behavior plan, which does include physical intervention(s). **&*** | C22: Behavior2 | D22: Behavform3
B23: Mental Health Plan: The individual has a mental health support need that requires mental health guidelines that include a crisis response plan that may include emergency physical intervention(s). *** | C23: Behavior2 | D23: Behavform4
B24: If you check any questions in the behavioral section marked with a * then the ISP team must meet and discuss the necessity of a functional assessment (FA) and/or a formal behavior support plan, ** then a functional assessment (FA) must be completed and a formal behavior support plan must be developed, if indicated by the FA. ***OIS training is required for provider, resident manager and all substitute caregiver(s).
A25: NOTES
A29: BEHAVIORAL SUPPORTS - SUPERVISON - HOME
A30: Supervision and monitoring for behavior, mental health or legally mandated supervision in the home environment.
B32: This section assesses the individual's ability to function in the home with supports and interventions from another person to maintain safety of self and/or others. Choose the option that most accurately reflects the supports required by the individual.
B34: Not Applicable or Age-Appropriate Supervision: The individual does not require supervision or monitoring from another person for behavioral issues or, for a child, age-appropriate supervision or monitoring is provided. | C34: Behavior3 | D34: BehavPlan1
B35: Redirecting: The individual has or may need a formal behavior plan, a legal order, or mental health guidelines that require redirection during waking hours, to assure the safety of the individual. * | C35: Behavior3 | D35: BehavPlan2
B36: Within Hearing or Visual Distances: The individual has or may need a formal behavior plan, a legal order, or mental health guidelines that require supervision of the individual to be within hearing or visual distance. * | C36: Behavior3 | D36: BehavPlan3
B37: Within Hearing and Visual Distances: The individual has or may need a formal behavior plan, a legal order, or mental health guidelines that require supervision of the individual to be within hearing and visual distance. * | C37: Behavior3 | D37: BehavPlan4
B38: If you check any questions in the behavioral section marked with a * then the ISP team must meet and discuss the necessity of a functional assessment (FA) and/or a formal behavior support plan.
A43: BEHAVIORAL SUPPORTS - SUPERVISION - HOME - ONE ON ONE
A44: Supervision and monitoring for behavior, mental health or legally mandated supervision in the home environment.
B45: =IF('Raw Scoring'!Q5=7,"2:1 Review","") -> 
B46: This section assesses the individual's ability to function in the home with supports and interventions from another person to maintain safety of self and/or others. Choose the option that most accurately reflects the supports required by the individual.
B48: Not Applicable: The individual does not require one-on-one or two-on-one supervision in the home. | C48: Behavior4 | D48: Behavinhome1
B49: One-on-One - 2: The individual has or may need a formal behavior plan, has a legal order or mental health guidelines that require 1:1 supervision. A caregiver must maintain an exclusive focus on the individual between the hours of 5:00 A.M. and 10:00 P.M. up to 2 hours a day. * See nighttime section for hours between 10:00 P.M. and 5:00 A.M. Documentation of caregivers' schedule and duties are required. | C49: Behavior4 | D49: Behavinhome2
B50: One-on-One - 4: The individual has or may need a formal behavior plan, has a legal order or mental health guidelines that require 1:1 supervision. A caregiver must maintain an exclusive focus on the individual between the hours of 5:00 A.M. and 10:00 P.M. up to 4 hours a day. * See nighttime section for hours between 10:00 P.M. and 5:00 A.M. Documentation of caregivers' schedule and duties are required. | C50: Behavior4 | D50: Behavinhome3
B51: One-on-One - 6: The individual has or may need a formal behavior plan, has a legal order or mental health guidelines that require 1:1 supervision. A caregiver must maintain an exclusive focus on the individual between the hours of 5:00 A.M. and 10:00 P.M. up to 6 hours a day. * See nighttime section for hours between 10:00 P.M. and 5:00 A.M. Documentation of caregivers' schedule and duties are required. | C51: Behavior4 | D51: Behavinhome4
B52: Continued on next page
A55: BEHAVIORAL SUPPORTS - SUPERVISION - HOME continued
B58: One-on-One - 8: The individual has or may need a formal behavior plan, has a legal order or mental health guidelines that require 1:1 supervision. A caregiver must maintain an exclusive focus on the individual between the hours of 5:00 A.M. and 10:00 P.M. up to 8 hours a day. * See nighttime section for hours between 10:00 P.M. and 5:00 A.M. Documentation of caregivers' schedule and duties are required. | C58: Behavior4 | D58: Behavinhome5
B59: One-on-One - 10: The individual has or may need a formal behavior plan, has a legal order or mental health guidelines that require 1:1 supervision. A caregiver must maintain an exclusive focus on the individual between the hours of 5:00 A.M. and 10:00 P.M. up to 10 hours a day. * See nighttime section for hours between 10:00 P.M. and 5:00 A.M. Documentation of caregivers' schedule and duties are required. | C59: Behavior4 | D59: Behavinhome6
B60: One-on-One - 12: The individual has or may need a formal behavior plan, has a legal order or mental health guidelines that require 1:1 supervision. A caregiver must maintain an exclusive focus on the individual between the hours of 5:00 A.M. and 10:00 P.M. up to 12 hours a day. * See nighttime section for hours between 10:00 P.M. and 5:00 A.M. Documentation of caregivers' schedule and duties are required. | C60: Behavior4 | D60: Behavinhome7
B61: Two-Person Assist: The individual has or needs a formal behavior plan, has a legal order or mental health guidelines that require 2:1 exclusive focus on the individual between the hours of 5:00 A.M. and 10:00 P.M. ** See nighttime section for hours between 10:00 P.M. and 5:00 A.M. Documentation of caregivers' schedules and duties are required. | C61: Behavior4 | D61: Behavinhome8
B62: If you check any questions in the behavioral section marked with a * then the ISP team must meet and discuss the necessity of a functional assessment (FA) and/or a formal behavior support plan, and if marked with ** and the individual has or needs a formal behavior plan, then a functional assessment (FA) must be completed and a formal behavior support plan must be developed, if indicated by the FA.
A67: BEHAVIORAL SUPPORTS - SUPERVISION - COMMUNITY
A68: Supervision and monitoring for behavior, mental health or legally mandated supervision in the community.
B69: =IF('Raw Scoring'!Q6=5,"2:1 Review","") -> 
B70: This section assesses the individual's ability to function in the community with supports and interventions from another person to maintain safety of self and/or others. Choose the option that most accurately reflects the supports required by the individual.
B72: Not Applicable: The individual does not require one-on-one or two-on-one supervision in the community. | C72: Behavior5 | D72: BehavComm1
B73: Within Hearing or Visual Distance: The individual has or may need a formal behavior plan, legal order, or mental health guidelines that require supervision of the individual to be within hearing or visual distance while in the community. * | C73: Behavior5 | D73: BehavComm2
B74: Within Hearing and Visual Distance: The individual has or may need a formal behavior plan, legal order, or mental health guidelines that require supervision of the individual to be within hearing and visual distance while in the community. * | C74: Behavior5 | D74: BehavComm3
B75: One-on-One: The individual has or may need a formal behavior plan, has a legal order or mental health guidelines that require 1:1 supervision in the community. A caregiver must maintain an exclusive focus on the individual while in the community. * See nighttime section for hours between 10:00 P.M. and 5:00 A.M. Documentation of caregivers' schedule and duties are required. | C75: Behavior5 | D75: BehavComm4
B76: Two-Person Assist: The individual has or needs a formal behavior plan, has a legal order or mental health guidelines that require 2:1 exclusive focus on the individual while in the community. ** See nighttime section for hours between 10:00 P.M. and 5:00 A.M. Documentation of caregivers' schedule and duties are required. | C76: Behavior5 | D76: BehavComm5
B77: If you check any questions in the behavioral section marked with a * then the ISP team must meet and discuss the necessity of a functional assessment (FA) and/or a formal behavior support plan and if marked with ** and the individual has or needs a formal behavior plan, then a functional assessment (FA) must be completed and a formal behavior support plan must be developed, if indicated by the FA.

Sheet Foster Care Budget Summary
B1: Foster Care Budget Summary - | D1: CHILD | E1: SNAP Version: | F1: 25.07
A2: Name of Individual | B2: =IF('Client Demographics'!D3="","",'Client Demographics'!D3) ->  | D2: Date of Birth | E2: =IF('Client Demographics'!L3="","",'Client Demographics'!L3) ->  | X2: No
A3: Prime # | B3: =IF('Client Demographics'!D4="","",'Client Demographics'!D4) ->  | D3: Age | E3: =IF('Client Demographics'!O3="","",'Client Demographics'!O3) ->  | X3: No
A4: Date of Assessment | B4: =IF(AsmtDate="","",AsmtDate) ->  | D4: Assessed Rate | E4: 2:1 Review? | X4: No
A5: Foster Care Initial Support Rate | D5: =IF(E2="",0,IF(DATEDIF(E2,AsmtDate,"Y")>=18," - ",BaseRate)) -> 0 | E5: N/A | X5: No
A6: ADL Supports | E6: ='Raw Scoring'!B15 -> No | X6: No
A7: Behavior Supports | E7: ='Raw Scoring'!Q8 -> No | X7: No
A8: Medical Supports | E8: ='Raw Scoring'!L19 -> No | X8: No
A9: Nighttime Supports | E9: ='Raw Scoring'!G5 -> No | X9: No
X10: No
A11: Total Foster Care Service Rate Per Assessment | D11: =IF(ISNUMBER(E11),E11,0) -> 0 | E11: =IF(ClientAgeWithInfantFracs<6,CappedRate0to5,IF(ClientAgeWithInfantFracs<10,CappedRate6to9,IF(ClientAgeWithInfantFracs<18,CappedRate10to17,IF(ClientAgeWithInfantFracs<99,CappedRateError,0)))) -> 0 | T11: No
D12: Approved Rate | X12: No
X13: No
A15: Assessor: Provide a copy of this Foster Care Support Needs Assessment Profile to the CDDP services coordinator.
A16: Service coordinator: Provide a copy of the Foster Care Budget Summary to the foster care provider.
A24: For the "Provider General Information" sheet, see:
A25: http://www.oregon.gov/DHS/SENIORS-DISABILITIES/DD/PROVIDERS-PARTNERS/Pages/provider-resources.aspx

Sheet Host Home Budget Summary (hidden)
A1: Host Home Budget Summary
A2: Name of Individual | B2: =IF('Client Demographics'!D3="","",'Client Demographics'!D3) ->  | D2: Date of Birth | E2: =IF('Client Demographics'!L3="","",'Client Demographics'!L3) -> 
A3: Date of Assessment | B3: =IF('Client Demographics'!O6="","",'Client Demographics'!O6) ->  | D3: Age | E3: =IF('Client Demographics'!O3="","",'Client Demographics'!O3) -> 
D5: Approved Rate | E5: =HHRawScoring!F36 -> 2153
A7: My signature verifies I have completed the Support Needs Assessment Profile using all available information obtained through observation, interview and the individual's records. The assessment accurately reflects the individual's support needs.
A8: Completed by: | B8: =IF('Client Demographics'!E11="","",'Client Demographics'!E11) ->  | D8: Signature:__________________________ | F8: Date:____________
A10: Comments:
A13: Review Date: | D13: =IF(B13="","Ongoing","") -> Ongoing
A15: Approved by: | D15: Signature:__________________________ | F15: Date:____________ | X15: No
B16: Name of County/ Regional/ SPD Staff | X16: No
A17: This signature shows that the County/ Regional/ SPD Staff has reviewed the support needs and approved rate for this individual in a Host Home site. If the Approved Rate changes, a new budget summary must be completed and signed by the County/ Regional/ SPD Staff.
A19: Host Home Agency Name:
A20: Approved by: | D20: Signature:__________________________ | F20: Date:____________
B21: Name of Host Home Agency Staff
A22: This signature shows that the agency has reviewed the support needs and approved rate for this individual in a Host Home site. If the Approved Rate changes, a new budget summary must be completed and signed by the Agency.

Sheet Children Rate Information (hidden)

Sheet Support Needs Summary
A1: SUPPORT NEEDS SUMMARY
A3: ADLs | B3: Support Needs Category
B4: =ADLs!A2 -> AMBULATION / MOBILITY IN THE HOME
B5: Support Need | C5: 2:1 Review? | D5: Documentation Needed
B6: Independent or Age Appropriate Supports Provided | C6: No | D6: None
B7: Support Needs Category
B8: =ADLs!A14 -> AMBULATION / MOBILITY IN THE COMMUNITY
B9: Support Need | C9: 2:1 Review? | D9: Documentation Needed
B10: Independent or Age Appropriate Supports Provided | C10: No | D10: None
B11: Support Needs Category
B12: =ADLs!A26 -> TRANSFERRING / POSITIONING
B13: Support Need | C13: 2:1 Review? | D13: Documentation Needed
B14: Independent or Age Appropriate Supports Provided | C14: No | D14: None
B15: Support Needs Category
B16: =ADLs!A38 -> EATING / DRINKING
B17: Support Need | C17: 2:1 Review? | D17: Documentation Needed
B18: Independent or Age Appropriate Supports Provided | C18: No | D18: None
B19: Support Needs Category
B20: =ADLs!A52 -> TOILETING
B21: Support Need | C21: 2:1 Review? | D21: Documentation Needed
B22: Independent or Age Appropriate Supports Provided | C22: No | D22: None
B23: Support Needs Category
B24: =ADLs!A64 -> BLADDER CONTROL
B25: Support Need | C25: 2:1 Review? | D25: Documentation Needed
B26: Independent or Age Appropriate Supports Provided | C26: No | D26: None
B27: Support Needs Category
B28: =ADLs!A77 -> BOWEL CONTROL
B29: Support Need | C29: 2:1 Review? | D29: Documentation Needed
B30: Independent or Age Appropriate Supports Provided | C30: No | D30: None
B31: Support Needs Category
B32: =ADLs!A90 -> MENSES
B33: Support Need | C33: 2:1 Review? | D33: Documentation Needed
B34: Not Applicable | C34: No | D34: None
B35: Support Needs Category
B36: =ADLs!A102 -> BATHING
B37: Support Need | C37: 2:1 Review? | D37: Documentation Needed
B38: Independent or Age Appropriate Supports Provided | C38: No | D38: None
B39: Support Needs Category
B40: =ADLs!A114 -> ORAL HYGIENE
B41: Support Need | C41: 2:1 Review? | D41: Documentation Needed
B42: Independent or Age Appropriate Supports Provided | C42: No | D42: None
B43: Support Needs Category
B44: =ADLs!A125 -> DRESSING & HAIR CARE
B45: Support Need | C45: 2:1 Review? | D45: Documentation Needed
B46: Independent or Age Appropriate Supports Provided | C46: No | D46: None
B47: Support Needs Category
B48: =ADLs!A136 -> SHAVING
B49: Support Need | C49: 2:1 Review? | D49: Documentation Needed
B50: Independent or Age Appropriate Supports Provided | C50: No | D50: None
A51: Medical Needs | B51: Support Needs Category
B52: ='Medical Needs'!A2 -> COMMUNICATION - EXPRESSIVE
B53: Support Need | C53: 2:1 Review? | D53: Documentation Needed
B54: Independent or Age Appropriate Supports Provided | C54: No | D54: None
B55: Support Needs Category
B56: ='Medical Needs'!A13 -> COMMUNICATION - RECEPTIVE
B57: Support Need | C57: 2:1 Review? | D57: Documentation Needed
B58: Independent or Age Appropriate Supports Provided | C58: No | D58: None
B59: Support Needs Category
B60: ='Medical Needs'!A24 -> SAFETY
B61: Support Need | C61: 2:1 Review? | D61: Documentation Needed
B62: Independent or Age Appropriate Supports Provided | C62: No | D62: None
B63: Support Needs Category
B64: ='Medical Needs'!A35 -> FIRE EVACUATION
B65: Support Need | C65: 2:1 Review? | D65: Documentation Needed
B66: Independent or Age Appropriate Supports Provided | C66: No | D66: None
B67: Support Needs Category
B68: ='Medical Needs'!A46 -> MEDICATION MANAGEMENT SUPPORTS - ORAL
B69: Support Need | C69: 2:1 Review? | D69: Documentation Needed
B70: Independent or Age Appropriate Supports Provided | C70: No | D70: None
B71: Support Needs Category
B72: ='Medical Needs'!A59 -> MEDICATION MANAGEMENT SUPPORTS - INHALANTS, TOPICALS, SUPPOSITORIES
B73: Support Need | C73: 2:1 Review? | D73: Documentation Needed
B74: Independent or Age Appropriate Supports Provided | C74: No | D74: None
B75: Support Needs Category
B76: ='Medical Needs'!A71 -> MEDICATION MANAGEMENT SUPPORTS - INJECTIONS
B77: Support Need | C77: 2:1 Review? | D77: Documentation Needed
B78: Independent or Age Appropriate Supports Provided | C78: No | D78: None
B79: Support Needs Category
B80: ='Medical Needs'!A83 -> HEALTH MANAGEMENT SUPPORTS - GENERAL
B81: Support Need | C81: 2:1 Review? | D81: Documentation Needed
B82: Independent or Age Appropriate Supports Provided | C82: No | D82: None
B83: Support Needs Category
B84: ='Medical Needs'!A96 -> COMPLEX HEALTH MANAGEMENT SUPPORTS
B85: Support Need | C85: 2:1 Review? | D85: Documentation Needed
B86: Independent | C86: No | D86: None
A87: Equipment
B88: Cane | D88: Notes
B89: Leg Braces | D89: =IF('Medical Needs'!A168 = "","", 'Medical Needs'!A168) -> 
B90: Walker
B91: Ankle or Foot Orthotics
B92: Arm Splints
B93: Adaptive Eating Equipment (not tube feeding equipment)
B94: Hospital Bed
B95: Grab Bars By Bed
B96: Hanging Bar Above Bed
B97: Shower Chair
B98: Grab Bars In Bathroom
B99: Shower Gurney
B100: Non-Electronic Communication Boards
B101: Electronic Communication Boards
B102: Hoyer Lift
B103: Transfer Equipment (transfer board)
B104: Body Jacket
B105: Manual Wheel Chair
B106: Electric Power Wheel Chair
B107: Prone Stander
B108: Sidelyer
B109: Specialized Tube Feeding Equipment
B110: Nebulizers
B111: C-PAP
B112: Oxygen
B113: Ventilator
B114: Pulse Oxymeter
B115: Heart Monitor
B116: Suctioning Equipment
B117: Vegal Stimulator
B118: Diabetic Insulin Pump
B119: Bacoflem Pump
B120: Prosthetics
A122: Nighttime Needs | B122: Support Needs Category
B123: ='Nighttime Needs'!A2 -> NIGHTTIME NEEDS - MEDICAL SUPPORTS
B124: Support Need | C124: 2:1 Review? | D124: Documentation Needed
B125: Not Applicable | C125: No | D125: None
B126: Support Needs Category | C126: No | D126: None
B127: ='Nighttime Needs'!A18 -> NIGHTTIME NEEDS - BEHAVIOR SUPPORTS
B128: Support Need | C128: 2:1 Review? | D128: Documentation Needed
B129: Not Applicable | C129: No | D129: None
A130: Behavior Needs | B130: Support Needs Category
B131: ='Behavior Needs'!A2 -> BEHAVIORAL SUPPORTS - NO FORMAL PLAN - SUPERVISON AND MONITORING
B132: Support Need | C132: 2:1 Review? | D132: Documentation Needed
B133: Not Applicable or Age-Appropriate Supervision | C133: No | D133: None
B134: Support Needs Category
B135: ='Behavior Needs'!A15 -> BEHAVIORAL SUPPORTS - PLANS - HOME AND COMMUNITY
B136: Support Need | C136: 2:1 Review? | D136: Documentation Needed
B137: Not Applicable | C137: No | D137: None
B138: Support Needs Category
B139: ='Behavior Needs'!A29 -> BEHAVIORAL SUPPORTS - SUPERVISON - HOME
B140: Support Need | C140: 2:1 Review? | D140: Documentation Needed
B141: Not Applicable or Age-Appropriate Supervision | C141: No | D141: None
B142: Support Needs Category
B143: ='Behavior Needs'!A43 -> BEHAVIORAL SUPPORTS - SUPERVISION - HOME - ONE ON ONE
B144: Support Need | C144: 2:1 Review? | D144: Documentation Needed
B145: Not Applicable | C145: No | D145: None
B146: Support Needs Category
B147: ='Behavior Needs'!A67 -> BEHAVIORAL SUPPORTS - SUPERVISION - COMMUNITY
B148: Support Need | C148: 2:1 Review? | D148: Documentation Needed
B149: Not Applicable | C149: No | D149: None

Sheet MFCU Use Only (hidden)
A1: Medically Fragile Children Served in Foster Care
A3: Instructions
A4: Complete Support Needs Assessment Profile normally with
A5: the exception of Consultant Hours.
A6: The consultant section in the Budget Summary should be left blank and filled in below.
A9: Enter number of non-licensed staff hours authorized per month. | B9: 0
A10: Enter hourly rate for non-licensed staff. | B10: 0
A12: Enter number of RN Staff Hours authorized per month. | B12: 0
A13: Enter hourly rate for RN staff. | B13: 0
A15: Enter other consultant hours authorized per month. | B15: 0
A16: Enter hourly rate for Other Consultants | B16: 0
A19: Final Adjusted Foster Care Rate | B19: ='Raw Scoring'!K41 -> 
B21: The Adjusted Foster Care Rate replaces the authorized rate on the Budget Summary document.
B22: The Foster Care provider will be expected to cover and pay 100% of all non-licensed staff time.
B23: RN hours will continue to be paid by submitting claims to the MMIS.

Sheet Raw Scoring (hidden)
B1: From Assessment | C1: Real Scoring | D1: Exception? | E1: Hours | G1: From Assessment | H1: Real Scoring | I1: Exception? | J1: Hours | L1: From Assessment | M1: Real Scoring | N1: Exception? | O1: Hours | Q1: From Assessment | T1: Real Scoring | U1: Exception? | V1: Hours | W1: DPAdjustment | X1: Exception? | Y1: HostHomeConsideration# | Z1: HostHome | AA1: HHResult
A2: ADL1 | B2: 0 | C2: =(IF(B2=5,4,B2)) -> 0 | D2: =IF(B2=5,"Yes","No") -> No | E2: =IF($C$36<6,VLOOKUP(C2,'New Scoring'!B2:H7,5),IF($C$36<10,VLOOKUP(C2,'New Scoring'!B2:H7,7),VLOOKUP(C2,'New Scoring'!B2:H7,2))) -> 0 | F2: Nighttime1 | G2: 0 | H2: =(IF(G2=5,4,G2)) -> 0 | I2: =IF(G2=5,"Yes","No") -> No | J2: =IF($C$36<6,VLOOKUP(H2,'New Scoring'!B74:H79,5),IF($C$36<10,VLOOKUP(H2,'New Scoring'!B74:H79,7),VLOOKUP(H2,'New Scoring'!B74:H79,2))) -> 0 | K2: Medical1 | L2: 0 | M2: =(IF(L2=5,4,L2)) -> 0 | N2: =IF(L2=5,"Yes","No") -> No | O2: =IF($C$36<6,VLOOKUP(M2,'New Scoring'!B86:H91,5),IF($C$36<10,VLOOKUP(M2,'New Scoring'!B86:H91,7),VLOOKUP(M2,'New Scoring'!B86:H91,2))) -> 0 | P2: Behavior1 | Q2: 0 | T2: =(IF(T4>1,0,Q2)) -> 0 | U2: =IF(Q2=5,"Yes","No") -> No | V2: =IF($C$36<6,VLOOKUP(T2,'New Scoring'!B182:H187,5),IF($C$36<10,VLOOKUP(T2,'New Scoring'!B182:H187,7),VLOOKUP(T2,'New Scoring'!B182:H187,2))) -> 0 | W2: 0 | X2: No | Y2: 1 | Z2: No | AA2: =IF(COUNTIF(Z2:Z36,"Yes")>0,"Yes","No") -> No
A3: ADL2 | B3: 0 | C3: =(IF(T6 > 2, 0, IF(B3=5,4,B3))) -> 0 | D3: =IF(B3=5,"Yes","No") -> No | E3: =IF($C$36<6,VLOOKUP(C3,'New Scoring'!B8:H13,5),IF($C$36<10,VLOOKUP(C3,'New Scoring'!B8:H13,7),VLOOKUP(C3,'New Scoring'!B8:H13,2))) -> 0 | F3: Nighttime2 | G3: 0 | H3: =(IF(G3=5,4,G3)) -> 0 | I3: =IF(G3=5,"Yes","No") -> No | J3: =IF($C$36<6,VLOOKUP(H3,'New Scoring'!B80:H85,5),IF($C$36<10,VLOOKUP(H3,'New Scoring'!B80:H85,7),VLOOKUP(H3,'New Scoring'!B80:H85,2))) -> 0 | K3: Medical2 | L3: 0 | M3: =(IF(L3=5,4,L3)) -> 0 | N3: =IF(L3=5,"Yes","No") -> No | O3: =IF($C$36<6,VLOOKUP(M3,'New Scoring'!B92:H97,5),IF($C$36<10,VLOOKUP(M3,'New Scoring'!B92:H97,7),VLOOKUP(M3,'New Scoring'!B92:H97,2))) -> 0 | P3: Behavior2 | Q3: 0 | T3: =(IF(Q3=5,4,Q3)) -> 0 | U3: =IF(Q3=5,"Yes","No") -> No | V3: =IF($C$36<6,VLOOKUP(T3,'New Scoring'!B188:H193,5),IF($C$36<10,VLOOKUP(T3,'New Scoring'!B188:H193,7),VLOOKUP(T3,'New Scoring'!B188:H193,2))) -> 0 | X3: No | Y3: 2 | Z3: No | AA3: =COUNTIF(Z2:Z36,"Yes") -> 0
A4: ADL3 | B4: 0 | C4: =(IF(B4=5,4,B4)) -> 0 | D4: No | E4: =IF($C$36<6,VLOOKUP(C4,'New Scoring'!B14:H19,5),IF($C$36<10,VLOOKUP(C4,'New Scoring'!B14:H19,7),VLOOKUP(C4,'New Scoring'!H14:BB19,2))) -> 0 | F4: Totals | G4: =G2+G3 -> 0 | H4: =MAX(H2:H3) -> 0 | I4: =COUNTIF(I2:I3,"Yes") -> 0 | J4: =SUM(J2:J3) -> 0 | K4: Medical3 | L4: 0 | M4: 0 | N4: No | O4: =IF($C$36<6,VLOOKUP(M4,'New Scoring'!B98:H103,5),IF($C$36<10,VLOOKUP(M4,'New Scoring'!B98:H103,7),VLOOKUP(M4,'New Scoring'!B98:H103,2))) -> 0 | P4: Behavior3 | Q4: 0 | T4: =IF(X5 = 4,2,IF(X5>4,3,IF(Q4=5,4,Q4))) -> 3 | U4: =IF(Q4=7,"Yes","No") -> No | V4: =IF($C$36<6,VLOOKUP(T4,'New Scoring'!B194:H199,5),IF($C$36<10,VLOOKUP(T4,'New Scoring'!B194:H199,7),VLOOKUP(T4,'New Scoring'!B194:H199,2))) -> 2 | W4: BehaviorDupChecks | X4: No | Y4: 3 | Z4: No
A5: ADL4 | B5: 0 | C5: =(IF(B5=5,4,B5)) -> 0 | D5: No | E5: =IF($C$36<6,VLOOKUP(C5,'New Scoring'!B20:H25,5),IF($C$36<10,VLOOKUP(C5,'New Scoring'!B20:H25,7),VLOOKUP(C5,'New Scoring'!B20:H25,2))) -> 0 | F5: Exception? | G5: =IF(I4>0,"Yes – Approval Required (see eXPRS)","No") -> No | K5: Medical4 | L5: 0 | M5: 0 | N5: No | O5: =IF($C$36<6,VLOOKUP(M5,'New Scoring'!B104:H109,5),IF($C$36<10,VLOOKUP(M5,'New Scoring'!B104:H109,7),VLOOKUP(M5,'New Scoring'!B104:H109,2))) -> 0 | P5: Behavior4 | Q5: 0 | T5: =(IF(Q5=7,6,Q5)) -> 0 | U5: =IF(Q5=7,"Yes","No") -> No | V5: =IF($C$36<6,VLOOKUP(T5,'New Scoring'!B200:H207,5),IF($C$36<10,VLOOKUP(T5,'New Scoring'!B200:H207,7),VLOOKUP(T5,'New Scoring'!B200:H207,2))) -> 0 | X5: No | Y5: 4 | Z5: No
A6: ADL5 | B6: 0 | C6: 0 | D6: No | E6: =IF($C$36<6,VLOOKUP(C6,'New Scoring'!B26:H31,5),IF($C$36<10,VLOOKUP(C6,'New Scoring'!B26:H31,7),VLOOKUP(C6,'New Scoring'!B26:H31,2))) -> 0 | K6: Medical5 | L6: 0 | M6: 0 | N6: No | O6: =IF($C$36<6,VLOOKUP(M6,'New Scoring'!B110:H115,5),IF($C$36<10,VLOOKUP(M6,'New Scoring'!B110:H115,7),VLOOKUP(M6,'New Scoring'!B110:H115,2))) -> 0 | P6: Behavior5 | Q6: 0 | T6: =IF(X4>6,IF(X4 = 7,2,4),IF(Q6=5,4,Q6)) -> 4 | U6: =IF(Q6=5,"Yes","No") -> No | V6: =IF($C$36<6,VLOOKUP(T6,'New Scoring'!B208:H213,5),IF($C$36<10,VLOOKUP(T6,'New Scoring'!B208:H213,7),VLOOKUP(T6,'New Scoring'!B208:H213,2))) -> 2 | X6: No | Y6: 5 | Z6: No
A7: ADL6 | B7: 0 | C7: 0 | D7: No | E7: =IF($C$36<6,VLOOKUP(C7,'New Scoring'!B32:H37,5),IF($C$36<10,VLOOKUP(C7,'New Scoring'!B32:H37,7),VLOOKUP(C7,'New Scoring'!B32:H37,2))) -> 0 | K7: Medical6 | L7: 0 | M7: 0 | N7: No | O7: =IF($C$36<6,VLOOKUP(M7,'New Scoring'!B116:H121,5),IF($C$36<10,VLOOKUP(M7,'New Scoring'!B116:H121,7),VLOOKUP(M7,'New Scoring'!B116:H121,2))) -> 0 | P7: Totals | Q7: =SUM(Q2:Q6) -> 0 | T7: =SUM(T2:T6) -> 7 | U7: =COUNTIF(U2:U6,"Yes") -> 0 | V7: =SUM(V2:V6) -> 4 | X7: No | Y7: 6 | Z7: No
A8: ADL7 | B8: 0 | C8: 0 | D8: No | E8: =IF($C$36<6,VLOOKUP(C8,'New Scoring'!B38:H43,5),IF($C$36<10,VLOOKUP(C8,'New Scoring'!B38:H43,7),VLOOKUP(C8,'New Scoring'!B38:H43,2))) -> 0 | K8: Medical7 | L8: 0 | M8: 0 | N8: No | O8: =IF($C$36<6,VLOOKUP(M8,'New Scoring'!B122:H127,5),IF($C$36<10,VLOOKUP(M8,'New Scoring'!B122:H127,7),VLOOKUP(M8,'New Scoring'!B122:H127,2))) -> 0 | P8: Exception? | Q8: =IF(U7>0,"Yes – Approval Required (see eXPRS)","No") -> No | Y8: 7 | Z8: No
A9: ADL8 | B9: 0 | C9: 0 | D9: No | E9: =IF($C$36<6,VLOOKUP(C9,'New Scoring'!B44:H49,5),IF($C$36<10,VLOOKUP(C9,'New Scoring'!B44:H49,7),VLOOKUP(C9,'New Scoring'!B44:H49,2))) -> 0 | K9: Medical8 | L9: 0 | M9: 0 | N9: No | O9: =IF($C$36<6,VLOOKUP(M9,'New Scoring'!B128:H133,5),IF($C$36<10,VLOOKUP(M9,'New Scoring'!B128:H133,7),VLOOKUP(M9,'New Scoring'!B128:H133,2))) -> 0 | Y9: 8 | Z9: No
A10: ADL9 | B10: 0 | C10: 0 | D10: No | E10: =IF($C$36<6,VLOOKUP(C10,'New Scoring'!B50:H55,5),IF($C$36<10,VLOOKUP(C10,'New Scoring'!B50:H55,7),VLOOKUP(C10,'New Scoring'!B50:H55,2))) -> 0 | K10: Medical9 | L10: 0 | M10: 0 | N10: =IF(Q11=5,"Yes","No") -> No | O10: =IF($C$36<6,VLOOKUP(M10,'New Scoring'!B134:H139,5),IF($C$36<10,VLOOKUP(M10,'New Scoring'!B134:H139,7),VLOOKUP(M10,'New Scoring'!B134:H139,2))) -> 0 | Y10: 9 | Z10: No
A11: ADL10 | B11: 0 | C11: 0 | D11: No | E11: =IF($C$36<6,VLOOKUP(C11,'New Scoring'!B56:H61,5),IF($C$36<10,VLOOKUP(C11,'New Scoring'!B56:H61,7),VLOOKUP(C11,'New Scoring'!B56:H61,2))) -> 0 | K11: Medical10 | L11: 0 | M11: 0 | N11: No | O11: =IF($C$36<6,VLOOKUP(M11,'New Scoring'!B140:H145,5),IF($C$36<10,VLOOKUP(M11,'New Scoring'!B140:H145,7),VLOOKUP(M11,'New Scoring'!B140:H145,2))) -> 0 | P11: 2 person | Q11: 0 | Y11: 10 | Z11: No
A12: ADL11 | B12: 0 | C12: =(IF(B12=5,4,B12)) -> 0 | D12: No | E12: =IF($C$36<6,VLOOKUP(C12,'New Scoring'!B62:H67,5),IF($C$36<10,VLOOKUP(C12,'New Scoring'!B62:H67,7),VLOOKUP(C12,'New Scoring'!B62:H67,2))) -> 0 | K12: Medical11 | L12: 0 | M12: 0 | N12: No | O12: =IF($C$36<6,VLOOKUP(M12,'New Scoring'!B146:H151,5),IF($C$36<10,VLOOKUP(M12,'New Scoring'!B146:H151,7),VLOOKUP(M12,'New Scoring'!B146:H151,2))) -> 0 | Y12: 11 | Z12: No
A13: ADL12 | B13: 0 | C13: =(IF(B13=5,4,B13)) -> 0 | D13: No | E13: =IF($C$36<6,VLOOKUP(C13,'New Scoring'!B68:H73,5),IF($C$36<10,VLOOKUP(C13,'New Scoring'!B68:H73,7),VLOOKUP(C13,'New Scoring'!B68:H73,2))) -> 0 | K13: Medical12 | L13: 0 | M13: 0 | N13: No | O13: =IF($C$36<6,VLOOKUP(M13,'New Scoring'!B152:H157,5),IF($C$36<10,VLOOKUP(M13,'New Scoring'!B152:H157,7),VLOOKUP(M13,'New Scoring'!B152:H157,2))) -> 0 | Y13: 12 | Z13: No
A14: Totals | B14: =SUM(B2:B13) -> 0 | C14: =SUM(C2:C13) -> 0 | D14: =COUNTIF(D2:D13,"Yes") -> 0 | E14: =SUM(E2:E13) -> 0 | K14: Medical13 | L14: 0 | M14: 0 | N14: No | O14: =IF($C$36<6,VLOOKUP(M14,'New Scoring'!B158:H163,5),IF($C$36<10,VLOOKUP(M14,'New Scoring'!B158:H163,7),VLOOKUP(M14,'New Scoring'!B158:H163,2))) -> 0 | Y14: 13 | Z14: No
A15: Exception? | B15: =IF(D14>0,"Yes – Approval Required (see eXPRS)","No") -> No | K15: Medical14 | L15: 0 | M15: 0 | N15: No | O15: =IF($C$36<6,VLOOKUP(M15,'New Scoring'!B164:H169,5),IF($C$36<10,VLOOKUP(M15,'New Scoring'!B164:H169,7),VLOOKUP(M15,'New Scoring'!B164:H169,2))) -> 0 | Y15: 14 | Z15: No
K16: Medical15 | L16: 0 | M16: 0 | N16: No | O16: =IF($C$36<6,VLOOKUP(M16,'New Scoring'!B170:H175,5),IF($C$36<10,VLOOKUP(M16,'New Scoring'!B170:H175,7),VLOOKUP(M16,'New Scoring'!B170:H175,2))) -> 0 | Y16: 15 | Z16: No
K17: Medical16 | L17: 0 | M17: 0 | N17: No | O17: =IF($C$36<6,VLOOKUP(M17,'New Scoring'!B176:H181,5),IF($C$36<10,VLOOKUP(M17,'New Scoring'!B176:H181,7),VLOOKUP(M17,'New Scoring'!B176:H181,2))) -> 0 | Y17: 16 | Z17: No
B18: ADL | C18: Nighttime | D18: Medical | E18: Behavior | F18: Total | G18: DayTime Total | K18: Totals | L18: =SUM(L2:L17) -> 0 | M18: =SUM(M2:M17) -> 0 | N18: =COUNTIF(N2:N17,"Yes") -> 0 | O18: =SUM(O2:O17) -> 0 | Y18: 17 | Z18: No
A19: Hours | B19: =E14 -> 0 | C19: =J4 -> 0 | D19: =O18 -> 0 | E19: =V7 -> 4 | F19: =SUM(B19:E19) -> 4 | G19: =B19+D19+E19 -> 4 | K19: Exception? | L19: =IF(N18>0,"Yes – Approval Required (see eXPRS)","No") -> No | Y19: 18 | Z19: No
A20: Hours Adjusted | B20: =IF(B19>6,6,B19) -> 0 | C20: =IF(C19>7,7,C19) -> 0 | D20: =IF(D19>12,12,D19) -> 0 | E20: =IF(E19>12,12,E19) -> 4 | F20: =SUM(B20:E20) -> 4 | G20: =B20+D20+E20 -> 4 | Y20: 19 | Z20: No
A21: Hours Adjusted 2 | B21: =IF($G$20>17,(B20/$G$20)*17,B20) -> 0 | C21: =C20 -> 0 | D21: =IF($G$20>17,(D20/$G$20)*17,D20) -> 0 | E21: =IF($G$20>17,(E20/$G$20)*17,E20) -> 4 | F21: =SUM(B21:E21) -> 4 | G21: =B21+D21+E21 -> 4 | O21: Temporary Increases | Q21: Restored Rate | Y21: 20 | Z21: No
A22: Hours Adjusted 3 | B22: =IF($F$21>24,(B21/$F$21)*24,B21) -> 0 | C22: =IF($F$21>24,(C21/$F$21)*24,C21) -> 0 | D22: =IF($F$21>24,(D21/$F$21)*24,D21) -> 0 | E22: =IF($F$21>24,(E21/$F$21)*24,E21) -> 4 | F22: =SUM(B22:E22) -> 4 | G22: =B22+D22+E22 -> 4 | K22: Effectivity Date: | L22: (Original) | M22: 2015-12-08 | N22: 2019-10-01 | O22: 2020-07-01 | P22: 2021-07-01 | Q22: 2023-07-01 | R22: 2025-07-01 | T22: Effective Rate | Y22: 21 | Z22: No
A23: Hours Adjusted 4 | B23: =IF($F$22>1.55,($F$22-1.55)/($F$22)*B22,0) -> 0 | C23: =IF($F$22>1.55,($F$22-1.55)/($F$22)*C22,0) -> 0 | D23: =IF($F$22>1.55,($F$22-1.55)/($F$22)*D22,0) -> 0 | E23: =IF($F$22>1.55,($F$22-1.55)/($F$22)*E22,0) -> 2.45 | F23: =SUM(B23:E23) -> 2.45 | K23: % Rate Increase: | L23: -- | M23: 0.04 | N23: 0.04 | O23: 0.05 | P23: 0.032 | Q23: ="3.2% (only)*" -> 3.2% (only)* | R23: 0.05 | T23: =HLOOKUP(AsmtDate,$L$22:$S23,ROWS($L$22:$S23),TRUE) ->  | Y23: 22 | Z23: No
A24: Kid Rate | B24: =HourlyRate ->  | C24: =HourlyRate ->  | D24: =HourlyRate ->  | E24: =HourlyRate ->  | F24: =HourlyRate ->  | K24: Child Hourly Rate: | L24: 9.5 | M24: =L24*(1+$M$23) -> 9.88 | N24: =ROUNDUP(M24*(1+N$23),2) -> 10.28 | O24: =ROUNDUP(N24*(1+O$23),2) -> 10.8 | P24: =ROUNDUP(O24*(1+P$23),2) -> 11.15 | Q24: =ROUNDUP(N24*(1+P$23),2) -> 10.61 | R24: =ROUNDUP(Q24*(1+R$23),2) -> 11.15 | T24: =HLOOKUP(AsmtDate,$L$22:$S24,ROWS($L$22:$S24),TRUE) ->  | Y24: 23 | Z24: No
A25: Days | B25: 30.41 | C25: 30.41 | D25: 30.41 | E25: 30.41 | F25: 30.41 | K25: Child Base Rate: | L25: 539 | M25: =L25*(1+$M$23) -> 560.56 | N25: =ROUNDUP(M25*(1+N$23),0) -> 583 | O25: =ROUNDUP(N25*(1+O$23),0) -> 613 | P25: =ROUNDUP(O25*(1+P$23),0) -> 633 | Q25: =ROUNDUP(N25*(1+P$23),0) -> 602 | R25: =ROUNDUP(Q25*(1+R$23),0) -> 633 | T25: =HLOOKUP(AsmtDate,$L$22:$S25,ROWS($L$22:$S25),TRUE) ->  | Y25: 24 | Z25: No
A26: Total Kid | B26: =B23*B24*B25 ->  | C26: =C23*C24*C25 ->  | D26: =D23*D24*D25 ->  | E26: =E23*E24*E25 ->  | F26: =F23*F24*F25 ->  | H26: Age | I26: Uncapped Rate | J26: Capped Rate | K26: Orig Cap | M26: =TEXT(M23,"0%")&" Adj. Cap" -> 4% Adj. Cap | N26: =TEXT(N23,"0%")&" Adj. Cap" -> 4% Adj. Cap | O26: =TEXT(O23,"0%")&" Adj. Cap" -> 5% Adj. Cap | P26: =TEXT(P23,"0.0%")&" Adj. Cap" -> 3.2% Adj. Cap | Q26: =TEXT(Q23,"0.0%")&" Adj. Cap" -> 3.2% (only)* Adj. Cap | R26: =TEXT(R23,"0%")&" Adj. Cap" -> 5% Adj. Cap | T26: =HLOOKUP(AsmtDate,$L$22:$S26,ROWS($L$22:$S26),TRUE) ->  | Y26: 25 | Z26: No
H27: 0-5 | I27: =$F$26+BaseRate ->  | J27: =IF(I27<=T27,I27,T27) ->  | K27: 3000 | M27: =K27*(1+M$23) -> 3120 | N27: =ROUNDUP(M27*(1+N$23),0) -> 3245 | O27: 3408 | P27: 3518 | Q27: =ROUNDUP(N27*(1+P$23),0) -> 3349 | R27: 3517 | T27: =HLOOKUP(AsmtDate,$L$22:$S27,ROWS($L$22:$S27),TRUE) ->  | Y27: 26 | Z27: No
H28: 6-9 | I28: =$F$26+BaseRate ->  | J28: =IF(I28<=T28,I28,T28) ->  | K28: 3500 | M28: =K28*(1+M$23) -> 3640 | N28: 3786 | O28: 3976 | P28: 4104 | Q28: =ROUNDUP(N28*(1+P$23),0) -> 3908 | R28: 4104 | T28: =HLOOKUP(AsmtDate,$L$22:$S28,ROWS($L$22:$S28),TRUE) ->  | Y28: 27 | Z28: No
H29: 10-17 | I29: =$F$26+BaseRate ->  | J29: =IF(I29<=T29,I29,T29) ->  | K29: 7285 | M29: =K29*(1+M$23) -> 7576.4 | N29: 7880 | O29: 8274 | P29: 8539 | Q29: =ROUNDUP(N29*(1+P$23),0) -> 8133 | R29: 8540 | T29: =HLOOKUP(AsmtDate,$L$22:$S29,ROWS($L$22:$S29),TRUE) ->  | Y29: 28 | Z29: No
H30: 18+ | I30: Check Birthdate, if over 18 use adult SNAP! | J30: Check Birthdate, if over 18 use adult SNAP! | Y30: 29 | Z30: No
I31: Note: in an empty assessment (hours = 0) these Rate columns will show the base rate only! | Q31: *The restored rate is a 3.2% (only) increase relative to the 10/1/2019 rate | Y31: 30 | Z31: No
Y32: 31 | Z32: No
Y33: 32 | Z33: No
H34: Kid's Consultant Adjustment | J34: MFCU Adjustment | Y34: 33 | Z34: No
A35: County LookUp | B35: Age Calc | C35: Age LookUp | H35: Consultants | J35: Hours Authorized via SNAP | K35: =ROUND('Foster Care Budget Summary'!D11/F24,0) ->  | Y35: 34 | Z35: No
A36: BAKER | B36: =IF(OR(ClientDOB="",AsmtDate="",ClientDOB>=AsmtDate), "", IF(DATEDIF(ClientDOB,AsmtDate,"Y")=0, DATEDIF(ClientDOB,AsmtDate,"YM") & " Month" & IF(DATEDIF(ClientDOB,AsmtDate,"YM")=1,"","s"), IF(DATEDIF(ClientDOB,AsmtDate,"Y")=1, DATEDIF(ClientDOB,AsmtDate,"M") & " Months", DATEDIF(ClientDOB,AsmtDate,"Y")))) ->  | C36: =IF(OR(ClientDOB="",AND(ISNUMBER(ClientAgeCalc),ClientAgeCalc>=18)), "", IF(DATEDIF(ClientDOB,AsmtDate,"Y")=0, ROUND(DATEDIF(ClientDOB,AsmtDate,"YM")/12, 1), IF(DATEDIF(ClientDOB,AsmtDate,"Y")=1, ROUND(DATEDIF(ClientDOB,AsmtDate,"M")/12, 1), DATEDIF(ClientDOB,AsmtDate,"Y")))) ->  | H36: Consultant 1 | I36: ='Foster Care Budget Summary'!#REF! ->  | J36: Hours Authorized via MFCU (Assume 80% of authorized hours will be worked) | K36: =('MFCU Use Only'!B9)+('MFCU Use Only'!B12*0.8) -> 0 | Y36: 35 | Z36: No
A37: BENTON | B37: =IF(AND(ISNUMBER(ClientAgeCalc),ClientAgeCalc>=18),"If 18 or older, must use Adult tool.",ClientAgeCalc) ->  | H37: Consultant 2 | I37: ='Foster Care Budget Summary'!#REF! ->  | J37: Remaining Hours | K37: =K35-K36 -> 
A38: CLACKAMAS | H38: Consultant 3 | I38: ='Foster Care Budget Summary'!#REF! ->  | J38: Personal Care | K38: ='MFCU Use Only'!B9*'MFCU Use Only'!B10 -> 0
A39: CLATSOP | H39: Total Consultants | I39: =SUM(I36:I38) ->  | J39: RN | K39: ='MFCU Use Only'!B12*'MFCU Use Only'!B13*0.8 -> 0
A40: COLUMBIA | H40: Times 90% | I40: =I39*0.9 ->  | J40: Other Consultants | K40: ='MFCU Use Only'!B15*'MFCU Use Only'!B16 -> 0
A41: COOS | J41: Total Rate | K41: =ROUND((K37*F24)+K38+K40,0) -> 
A42: CROOK
A43: CURRY
A44: DESCHUTES
A45: DOUGLAS
A46: GILLIAM
A47: GRANT
A48: HARNEY
A49: HOOD RIVER
A50: JACKSON
A51: JEFFERSON
A52: JOSEPHINE
A53: KLAMATH
A54: LAKE
A55: LANE
A56: LINCOLN
A57: LINN
A58: MALHEUR
A59: MARION
A60: MORROW
A61: MULTNOMAH
A62: POLK
A63: SHERMAN
A64: TILLAMOOK
A65: UMATILLA
A66: UNION
A67: WALLOWA
A68: WASCO
A69: WASHINGTON
A70: WHEELER
A71: YAMHILL
A73: Relationships
A74: Legal Guardian
A75: Parent
A76: Foster Care Provider
A77: Foster Care Provider Staff
A78: Vocational Provider Staff
A79: Vocational Provider Manager
A80: Behavior Specialist
A81: Nursing Professional
A82: Services Coordinator
A83: Regional MCL/Crisis Staff
A84: Child Welfare Staff
A85: SPD Kids’ Residential Coordinator
A86: Other

Sheet New Scoring (hidden)
A1: Category | B1: Assessment Score | C1: Corresponding Hours >9 | D1: Pricing | F1: Hours 0 to 5 | G1: Pricing 0 to 5 | H1: Hours 6 to 9 | I1: Pricing 6 to 9
A2: ADL1 | B2: 0 | C2: 0 | D2: =ROUND(C2*30.41*9.5,0) -> 0 | F2: 0 | G2: =ROUND(F2*30.41*9.5,0) -> 0 | H2: 0 | I2: =ROUND(H2*30.41*9.5,0) -> 0
A3: ADL1 | B3: 1 | C3: 1 | D3: =ROUND(C3*30.41*9.5,0) -> 289 | F3: 0 | G3: 0 | H3: 0 | I3: 0
A4: ADL1 | B4: 2 | C4: 1 | D4: 289 | F4: 0 | G4: 0 | H4: 0 | I4: 0
A5: ADL1 | B5: 3 | C5: 1 | D5: 289 | F5: 0 | G5: 0 | H5: 0 | I5: 0
A6: ADL1 | B6: 4 | C6: 2 | D6: 578 | F6: 0 | G6: 0 | H6: 1 | I6: 289
A7: ADL1 | B7: 5 | C7: 2 | D7: 578 | F7: 0 | G7: 0 | H7: 1 | I7: 289
A8: ADL2 | B8: 0 | C8: 0 | D8: 0 | F8: 0 | G8: 0 | H8: 0 | I8: 0
A9: ADL2 | B9: 1 | C9: 1 | D9: 289 | F9: 0 | G9: 0 | H9: 0 | I9: 0
A10: ADL2 | B10: 2 | C10: 1 | D10: 289 | F10: 0 | G10: 0 | H10: 0 | I10: 0
A11: ADL2 | B11: 3 | C11: 1 | D11: 289 | F11: 0 | G11: 0 | H11: 0 | I11: 0
A12: ADL2 | B12: 4 | C12: 2 | D12: 578 | F12: 0 | G12: 0 | H12: 1 | I12: 289
A13: ADL2 | B13: 5 | C13: 2 | D13: 578 | F13: 0 | G13: 0 | H13: 1 | I13: 289
A14: ADL3 | B14: 0 | C14: 0 | D14: 0 | F14: 0 | G14: 0 | H14: 0 | I14: 0
A15: ADL3 | B15: 1 | C15: 1 | D15: 289 | F15: 0 | G15: 0 | H15: 0 | I15: 0
A16: ADL3 | B16: 2 | C16: 1 | D16: 289 | F16: 0 | G16: 0 | H16: 0 | I16: 0
A17: ADL3 | B17: 3 | C17: 1 | D17: 289 | F17: 0 | G17: 0 | H17: 0 | I17: 0
A18: ADL3 | B18: 4 | C18: 2 | D18: 578 | F18: 0 | G18: 0 | H18: 1 | I18: 289
A19: ADL3 | B19: 5 | C19: 2 | D19: 578 | F19: 0 | G19: 0 | H19: 1 | I19: 289
A20: ADL4 | B20: 0 | C20: 0 | D20: 0 | F20: 0 | G20: 0 | H20: 0 | I20: 0
A21: ADL4 | B21: 1 | C21: 0.5 | D21: 144 | F21: 0 | G21: 0 | H21: 0 | I21: 0
A22: ADL4 | B22: 2 | C22: 2 | D22: 578 | F22: 0 | G22: 0 | H22: 1 | I22: 289
A23: ADL4 | B23: 3 | C23: 3 | D23: 867 | F23: 2 | G23: 578 | H23: 2 | I23: 578
A24: ADL4 | B24: 4 | C24: 3 | D24: 867 | F24: 2 | G24: 578 | H24: 2 | I24: 578
A25: ADL4 | B25: 5 | C25: 3 | D25: 867 | F25: 2 | G25: 578 | H25: 2 | I25: 578
A26: ADL5 | B26: 0 | C26: 0 | D26: 0 | F26: 0 | G26: 0 | H26: 0 | I26: 0
A27: ADL5 | B27: 1 | C27: 0 | D27: 0 | F27: 0 | G27: 0 | H27: 0 | I27: 0
A28: ADL5 | B28: 2 | C28: 0 | D28: 0 | F28: 0 | G28: 0 | H28: 0 | I28: 0
A29: ADL5 | B29: 3 | C29: 0.5 | D29: 144 | F29: 0 | G29: 0 | H29: 0 | I29: 0
A30: ADL5 | B30: 4 | C30: 1 | D30: 289 | F30: 0 | G30: 0 | H30: 1 | I30: 289
A31: ADL5 | B31: 5 | C31: 1 | D31: 289 | F31: 0 | G31: 0 | H31: 1 | I31: 289
A32: ADL6 | B32: 0 | C32: 0 | D32: 0 | F32: 0 | G32: 0 | H32: 0 | I32: 0
A33: ADL6 | B33: 1 | C33: 0 | D33: 0 | F33: 0 | G33: 0 | H33: 0 | I33: 0
A34: ADL6 | B34: 2 | C34: 0 | D34: 0 | F34: 0 | G34: 0 | H34: 0 | I34: 0
A35: ADL6 | B35: 3 | C35: 0.5 | D35: 144 | F35: 0 | G35: 0 | H35: 0.5 | I35: 144
A36: ADL6 | B36: 4 | C36: 2 | D36: 578 | F36: 0 | G36: 0 | H36: 1 | I36: 289
A37: ADL6 | B37: 5 | C37: 2 | D37: 578 | F37: 0 | G37: 0 | H37: 1 | I37: 289
A38: ADL7 | B38: 0 | C38: 0 | D38: 0 | F38: 0 | G38: 0 | H38: 0 | I38: 0
A39: ADL7 | B39: 1 | C39: 0 | D39: 0 | F39: 0 | G39: 0 | H39: 0 | I39: 0
A40: ADL7 | B40: 2 | C40: 0 | D40: 0 | F40: 0 | G40: 0 | H40: 0 | I40: 0
A41: ADL7 | B41: 3 | C41: 0.5 | D41: 144 | F41: 0.5 | G41: 144 | H41: 0.5 | I41: 144
A42: ADL7 | B42: 4 | C42: 2 | D42: 578 | F42: 1 | G42: 289 | H42: 1 | I42: 289
A43: ADL7 | B43: 5 | C43: 2 | D43: 578 | F43: 1 | G43: 289 | H43: 1 | I43: 289
A44: ADL8 | B44: 0 | C44: 0 | D44: 0 | F44: 0 | G44: 0 | H44: 0 | I44: 0
A45: ADL8 | B45: 1 | C45: 0 | D45: 0 | F45: 0 | G45: 0 | H45: 0 | I45: 0
A46: ADL8 | B46: 2 | C46: 0 | D46: 0 | F46: 0 | G46: 0 | H46: 0 | I46: 0
A47: ADL8 | B47: 3 | C47: 0.25 | D47: 72 | F47: 0 | G47: 0 | H47: 0 | I47: 0
A48: ADL8 | B48: 4 | C48: 0.5 | D48: 144 | F48: 0 | G48: 0 | H48: 0 | I48: 0
A49: ADL8 | B49: 5 | C49: 0.5 | D49: 144 | F49: 0 | G49: 0 | H49: 0 | I49: 0
A50: ADL9 | B50: 0 | C50: 0 | D50: 0 | F50: 0 | G50: 0 | H50: 0 | I50: 0
A51: ADL9 | B51: 1 | C51: 0 | D51: 0 | F51: 0 | G51: 0 | H51: 0 | I51: 0
A52: ADL9 | B52: 2 | C52: 0.25 | D52: 72 | F52: 0 | G52: 0 | H52: 0 | I52: 0
A53: ADL9 | B53: 3 | C53: 0.25 | D53: 72 | F53: 0 | G53: 0 | H53: 0 | I53: 0
A54: ADL9 | B54: 4 | C54: 1 | D54: 289 | F54: 0 | G54: 0 | H54: 0.5 | I54: 144
A55: ADL9 | B55: 5 | C55: 1 | D55: 289 | F55: 0 | G55: 0 | H55: 0.5 | I55: 144
A56: ADL10 | B56: 0 | C56: 0 | D56: 0 | F56: 0 | G56: 0 | H56: 0 | I56: 0
A57: ADL10 | B57: 1 | C57: 0 | D57: 0 | F57: 0 | G57: 0 | H57: 0 | I57: 0
A58: ADL10 | B58: 2 | C58: 0.25 | D58: 72 | F58: 0 | G58: 0 | H58: 0 | I58: 0
A59: ADL10 | B59: 3 | C59: 0.25 | D59: 72 | F59: 0 | G59: 0 | H59: 0 | I59: 0
A60: ADL10 | B60: 4 | C60: 0.25 | D60: 72 | F60: 0 | G60: 0 | H60: 0 | I60: 0
A61: ADL10 | B61: 5 | C61: 0.25 | D61: 72 | F61: 0 | G61: 0 | H61: 0 | I61: 0
A62: ADL11 | B62: 0 | C62: 0 | D62: 0 | F62: 0 | G62: 0 | H62: 0 | I62: 0
A63: ADL11 | B63: 1 | C63: 0 | D63: 0 | F63: 0 | G63: 0 | H63: 0 | I63: 0
A64: ADL11 | B64: 2 | C64: 0.167 | D64: 48 | F64: 0 | G64: 0 | H64: 0 | I64: 0
A65: ADL11 | B65: 3 | C65: 0.667 | D65: 193 | F65: 0 | G65: 0 | H65: 0 | I65: 0
A66: ADL11 | B66: 4 | C66: 0.667 | D66: 193 | F66: 0 | G66: 0 | H66: 0 | I66: 0
A67: ADL11 | B67: 5 | C67: 0.667 | D67: =ROUND(C67*30.41*9.5,0) -> 193 | F67: 0 | G67: =ROUND(F67*30.41*9.5,0) -> 0 | H67: 0 | I67: =ROUND(H67*30.41*9.5,0) -> 0
A68: ADL12 | B68: 0 | C68: 0 | D68: 0 | F68: 0 | G68: 0 | H68: 0 | I68: 0
A69: ADL12 | B69: 1 | C69: 0 | D69: 0 | F69: 0 | G69: 0 | H69: 0 | I69: 0
A70: ADL12 | B70: 2 | C70: 0.083 | D70: 24 | F70: 0 | G70: 0 | H70: 0 | I70: 0
A71: ADL12 | B71: 3 | C71: 0.333 | D71: 96 | F71: 0 | G71: 0 | H71: 0 | I71: 0
A72: ADL12 | B72: 4 | C72: 0.333 | D72: 96 | F72: 0 | G72: 0 | H72: 0 | I72: 0
A73: ADL12 | B73: 5 | C73: 0.333 | D73: 96 | F73: 0 | G73: 0 | H73: 0 | I73: 0
A74: Nighttime1 | B74: 0 | C74: 0 | D74: 0 | F74: 0 | G74: 0 | H74: 0 | I74: 0
A75: Nighttime1 | B75: 1 | C75: 1 | D75: 289 | F75: 0 | G75: 0 | H75: 0 | I75: 0
A76: Nighttime1 | B76: 2 | C76: 3 | D76: 867 | F76: 1 | G76: 289 | H76: 1 | I76: 289
A77: Nighttime1 | B77: 3 | C77: 6 | D77: 1733 | F77: 3 | G77: 867 | H77: 3 | I77: 867
A78: Nighttime1 | B78: 4 | C78: 7 | D78: 2022 | F78: 4 | G78: 1156 | H78: 4 | I78: 1156
A79: Nighttime1 | B79: 5 | C79: 7 | D79: 2022 | F79: 4 | G79: 1156 | H79: 4 | I79: 1156
A80: Nighttime2 | B80: 0 | C80: 0 | D80: 0 | F80: 0 | G80: 0 | H80: 0 | I80: 0
A81: Nighttime2 | B81: 1 | C81: 1 | D81: 289 | F81: 0 | G81: 0 | H81: 0 | I81: 0
A82: Nighttime2 | B82: 2 | C82: 3 | D82: 867 | F82: 1 | G82: 289 | H82: 1 | I82: 289
A83: Nighttime2 | B83: 3 | C83: 6 | D83: 1733 | F83: 3 | G83: 867 | H83: 3 | I83: 867
A84: Nighttime2 | B84: 4 | C84: 7 | D84: 2022 | F84: 4 | G84: 1156 | H84: 4 | I84: 1156
A85: Nighttime2 | B85: 5 | C85: 7 | D85: 2022 | F85: 4 | G85: 1156 | H85: 4 | I85: 1156
A86: Medical1 | B86: 0 | C86: 0 | D86: 0 | F86: 0 | G86: 0 | H86: 0 | I86: 0
A87: Medical1 | B87: 1 | C87: 0 | D87: 0 | F87: 0 | G87: 0 | H87: 0 | I87: 0
A88: Medical1 | B88: 2 | C88: 1 | D88: 289 | F88: 0 | G88: 0 | H88: 0 | I88: 0
A89: Medical1 | B89: 3 | C89: 1 | D89: 289 | F89: 0 | G89: 0 | H89: 0 | I89: 0
A90: Medical1 | B90: 4 | C90: 1 | D90: 289 | F90: 0 | G90: 0 | H90: 0 | I90: 0
A91: Medical1 | B91: 5 | C91: 1 | D91: 289 | F91: 0 | G91: 0 | H91: 0 | I91: 0
A92: Medical2 | B92: 0 | C92: 0 | D92: 0 | F92: 0 | G92: 0 | H92: 0 | I92: 0
A93: Medical2 | B93: 1 | C93: 0 | D93: 0 | F93: 0 | G93: 0 | H93: 0 | I93: 0
A94: Medical2 | B94: 2 | C94: 1 | D94: 289 | F94: 0 | G94: 0 | H94: 0 | I94: 0
A95: Medical2 | B95: 3 | C95: 1 | D95: 289 | F95: 0 | G95: 0 | H95: 0 | I95: 0
A96: Medical2 | B96: 4 | C96: 1 | D96: 289 | F96: 0 | G96: 0 | H96: 0 | I96: 0
A97: Medical2 | B97: 5 | C97: 1 | D97: 289 | F97: 0 | G97: 0 | H97: 0 | I97: 0
A98: Medical3 | B98: 0 | C98: 0 | D98: 0 | F98: 0 | G98: 0 | H98: 0 | I98: 0
A99: Medical3 | B99: 1 | C99: 0 | D99: =ROUND(C99*30.41*9.5,0) -> 0 | F99: 0 | G99: =ROUND(F99*30.41*9.5,0) -> 0 | H99: 0 | I99: =ROUND(H99*30.41*9.5,0) -> 0
A100: Medical3 | B100: 2 | C100: 1.5 | D100: 433 | F100: 0 | G100: 0 | H100: 0 | I100: 0
A101: Medical3 | B101: 3 | C101: 1.5 | D101: 433 | F101: 0 | G101: 0 | H101: 0 | I101: 0
A102: Medical3 | B102: 4 | C102: 1.5 | D102: 433 | F102: 0 | G102: 0 | H102: 0 | I102: 0
A103: Medical3 | B103: 5 | C103: 1.5 | D103: 433 | F103: 0 | G103: 0 | H103: 0 | I103: 0
A104: Medical4 | B104: 0 | C104: 0 | D104: 0 | F104: 0 | G104: 0 | H104: 0 | I104: 0
A105: Medical4 | B105: 1 | C105: 0 | D105: 0 | F105: 0 | G105: 0 | H105: 0 | I105: 0
A106: Medical4 | B106: 2 | C106: 0.05 | D106: 14 | F106: 0 | G106: 0 | H106: 0 | I106: 0
A107: Medical4 | B107: 3 | C107: 0.05 | D107: 14 | F107: 0 | G107: 0 | H107: 0 | I107: 0
A108: Medical4 | B108: 4 | C108: 0.05 | D108: 14 | F108: 0 | G108: 0 | H108: 0 | I108: 0
A109: Medical4 | B109: 5 | C109: 0.05 | D109: 14 | F109: 0 | G109: 0 | H109: 0 | I109: 0
A110: Medical5 | B110: 0 | C110: 0 | D110: 0 | F110: 0 | G110: 0 | H110: 0 | I110: 0
A111: Medical5 | B111: 1 | C111: 0.5 | D111: 144 | F111: 0.5 | G111: 144 | H111: 0.5 | I111: 144
A112: Medical5 | B112: 2 | C112: 1 | D112: 289 | F112: 1 | G112: 289 | H112: 1 | I112: 289
A113: Medical5 | B113: 3 | C113: 1 | D113: 289 | F113: 1 | G113: 289 | H113: 1 | I113: 289
A114: Medical5 | B114: 4 | C114: 1 | D114: 289 | F114: 1 | G114: 289 | H114: 1 | I114: 289
A115: Medical5 | B115: 5 | C115: 1 | D115: 289 | F115: 1 | G115: 289 | H115: 1 | I115: 289
A116: Medical6 | B116: 0 | C116: 0 | D116: 0 | F116: 0 | G116: 0 | H116: 0 | I116: 0
A117: Medical6 | B117: 1 | C117: 0.5 | D117: 144 | F117: 0.5 | G117: 144 | H117: 0.5 | I117: 144
A118: Medical6 | B118: 2 | C118: 1 | D118: 289 | F118: 1 | G118: 289 | H118: 1 | I118: 289
A119: Medical6 | B119: 3 | C119: 1 | D119: 289 | F119: 1 | G119: 289 | H119: 1 | I119: 289
A120: Medical6 | B120: 4 | C120: 1 | D120: 289 | F120: 1 | G120: 289 | H120: 1 | I120: 289
A121: Medical6 | B121: 5 | C121: 1 | D121: 289 | F121: 1 | G121: 289 | H121: 1 | I121: 289
A122: Medical7 | B122: 0 | C122: 0 | D122: 0 | F122: 0 | G122: 0 | H122: 0 | I122: 0
A123: Medical7 | B123: 1 | C123: 0 | D123: 0 | F123: 0 | G123: 0 | H123: 0 | I123: 0
A124: Medical7 | B124: 2 | C124: 0 | D124: 0 | F124: 0 | G124: 0 | H124: 0 | I124: 0
A125: Medical7 | B125: 3 | C125: 0.5 | D125: 144 | F125: 0.5 | G125: 144 | H125: 0.5 | I125: 144
A126: Medical7 | B126: 4 | C126: 1 | D126: 289 | F126: 1 | G126: 289 | H126: 1 | I126: 289
A127: Medical7 | B127: 5 | C127: 1 | D127: 289 | F127: 1 | G127: 289 | H127: 1 | I127: 289
A128: Medical8 | B128: 0 | C128: 0 | D128: 0 | F128: 0 | G128: 0 | H128: 0 | I128: 0
A129: Medical8 | B129: 1 | C129: 0.25 | D129: 72 | F129: 0 | G129: 0 | H129: 0 | I129: 0
A130: Medical8 | B130: 2 | C130: 0.5 | D130: 144 | F130: 0.25 | G130: 72 | H130: 0.25 | I130: 72
A131: Medical8 | B131: 3 | C131: 0.5 | D131: =ROUND(C131*30.41*9.5,0) -> 144 | F131: 0.25 | G131: =ROUND(F131*30.41*9.5,0) -> 72 | H131: 0.25 | I131: =ROUND(H131*30.41*9.5,0) -> 72
A132: Medical8 | B132: 4 | C132: 0.5 | D132: 144 | F132: 0.25 | G132: 72 | H132: 0.25 | I132: 72
A133: Medical8 | B133: 5 | C133: 0.5 | D133: 144 | F133: 0.25 | G133: 72 | H133: 0.25 | I133: 72
A134: Medical9 | B134: 0 | C134: 0 | D134: 0 | F134: 0 | G134: 0 | H134: 0 | I134: 0
A135: Medical9 | B135: 1 | C135: 1 | D135: 289 | F135: 0 | G135: 0 | H135: 0 | I135: 0
A136: Medical9 | B136: 2 | C136: 2 | D136: 578 | F136: 1 | G136: 289 | H136: 1 | I136: 289
A137: Medical9 | B137: 3 | C137: 6 | D137: 1733 | F137: 6 | G137: 1733 | H137: 6 | I137: 1733
A138: Medical9 | B138: 4 | C138: 12 | D138: 3467 | F138: 6 | G138: 1733 | H138: 6 | I138: 1733
A139: Medical9 | B139: 5 | C139: 12 | D139: 3467 | F139: 6 | G139: 1733 | H139: 6 | I139: 1733
A140: Medical10 | B140: 0 | C140: 0 | D140: 0 | F140: 0 | G140: 0 | H140: 0 | I140: 0
A141: Medical10 | B141: 1 | C141: 0.035 | D141: 10 | F141: 0 | G141: 0 | H141: 0 | I141: 0
A142: Medical10 | B142: 2 | C142: 0.0877 | D142: 25 | F142: 0 | G142: 0 | H142: 0 | I142: 0
A143: Medical10 | B143: 3 | C143: 0.0877 | D143: 25 | F143: 0 | G143: 0 | H143: 0 | I143: 0
A144: Medical10 | B144: 4 | C144: 0.0877 | D144: 25 | F144: 0 | G144: 0 | H144: 0 | I144: 0
A145: Medical10 | B145: 5 | C145: 0.0877 | D145: 25 | F145: 0 | G145: 0 | H145: 0 | I145: 0
A146: Medical11 | B146: 0 | C146: 0 | D146: 0 | F146: 0 | G146: 0 | H146: 0 | I146: 0
A147: Medical11 | B147: 1 | C147: 0 | D147: 0 | F147: 0 | G147: 0 | H147: 0 | I147: 0
A148: Medical11 | B148: 2 | C148: 0 | D148: 0 | F148: 0 | G148: 0 | H148: 0 | I148: 0
A149: Medical11 | B149: 3 | C149: 0 | D149: 0 | F149: 0 | G149: 0 | H149: 0 | I149: 0
A150: Medical11 | B150: 4 | C150: 0 | D150: 0 | F150: 0 | G150: 0 | H150: 0 | I150: 0
A151: Medical11 | B151: 5 | C151: 0 | D151: 0 | F151: 0 | G151: 0 | H151: 0 | I151: 0
A152: Medical12 | B152: 0 | C152: 0 | D152: 0 | F152: 0 | G152: 0 | H152: 0 | I152: 0
A153: Medical12 | B153: 1 | C153: 0 | D153: 0 | F153: 0 | G153: 0 | H153: 0 | I153: 0
A154: Medical12 | B154: 2 | C154: 0 | D154: 0 | F154: 0 | G154: 0 | H154: 0 | I154: 0
A155: Medical12 | B155: 3 | C155: 0.1747 | D155: 50 | F155: 0 | G155: 0 | H155: 0 | I155: 0
A156: Medical12 | B156: 4 | C156: 0.1747 | D156: 50 | F156: 0 | G156: 0 | H156: 0 | I156: 0
A157: Medical12 | B157: 5 | C157: 0.1747 | D157: 50 | F157: 0 | G157: 0 | H157: 0 | I157: 0
A158: Medical13 | B158: 0 | C158: 0 | D158: 0 | F158: 0 | G158: 0 | H158: 0 | I158: 0
A159: Medical13 | B159: 1 | C159: 0 | D159: 0 | F159: 0 | G159: 0 | H159: 0 | I159: 0
A160: Medical13 | B160: 2 | C160: 0.1747 | D160: 50 | F160: 0 | G160: 0 | H160: 0 | I160: 0
A161: Medical13 | B161: 3 | C161: 0.1747 | D161: 50 | F161: 0 | G161: 0 | H161: 0 | I161: 0
A162: Medical13 | B162: 4 | C162: 0.1747 | D162: 50 | F162: 0 | G162: 0 | H162: 0 | I162: 0
A163: Medical13 | B163: 5 | C163: 0.1747 | D163: =ROUND(C163*30.41*9.5,0) -> 50 | F163: 0 | G163: =ROUND(F163*30.41*9.5,0) -> 0 | H163: 0 | I163: =ROUND(H163*30.41*9.5,0) -> 0
A164: Medical14 | B164: 0 | C164: 0 | D164: 0 | F164: 0 | G164: 0 | H164: 0 | I164: 0
A165: Medical14 | B165: 1 | C165: 0 | D165: 0 | F165: 0 | G165: 0 | H165: 0 | I165: 0
A166: Medical14 | B166: 2 | C166: 0.0877 | D166: 25 | F166: 0 | G166: 0 | H166: 0 | I166: 0
A167: Medical14 | B167: 3 | C167: 0.346 | D167: 100 | F167: 0 | G167: 0 | H167: 0 | I167: 0
A168: Medical14 | B168: 4 | C168: 0.346 | D168: 100 | F168: 0 | G168: 0 | H168: 0 | I168: 0
A169: Medical14 | B169: 5 | C169: 0.346 | D169: 100 | F169: 0 | G169: 0 | H169: 0 | I169: 0
A170: Medical15 | B170: 0 | C170: 0 | D170: 0 | F170: 0 | G170: 0 | H170: 0 | I170: 0
A171: Medical15 | B171: 1 | C171: 0.0877 | D171: 25 | F171: 0 | G171: 0 | H171: 0 | I171: 0
A172: Medical15 | B172: 2 | C172: 0.0877 | D172: 25 | F172: 0 | G172: 0 | H172: 0 | I172: 0
A173: Medical15 | B173: 3 | C173: 0.1747 | D173: 50 | F173: 0 | G173: 0 | H173: 0 | I173: 0
A174: Medical15 | B174: 4 | C174: 0.1747 | D174: 50 | F174: 0 | G174: 0 | H174: 0 | I174: 0
A175: Medical15 | B175: 5 | C175: 0.1747 | D175: 50 | F175: 0 | G175: 0 | H175: 0 | I175: 0
A176: Medical16 | B176: 0 | C176: 0 | D176: 0 | F176: 0 | G176: 0 | H176: 0 | I176: 0
A177: Medical16 | B177: 1 | C177: 0.035 | D177: 10 | F177: 0 | G177: 0 | H177: 0 | I177: 0
A178: Medical16 | B178: 2 | C178: 0.0877 | D178: 25 | F178: 0 | G178: 0 | H178: 0 | I178: 0
A179: Medical16 | B179: 3 | C179: 0.1747 | D179: 50 | F179: 0 | G179: 0 | H179: 0 | I179: 0
A180: Medical16 | B180: 4 | C180: 0.346 | D180: 100 | F180: 0 | G180: 0 | H180: 0 | I180: 0
A181: Medical16 | B181: 5 | C181: 0.346 | D181: 100 | F181: 0 | G181: 0 | H181: 0 | I181: 0
A182: Behavior1 | B182: 0 | C182: 0 | D182: 0 | F182: 0 | G182: 0 | H182: 0 | I182: 0
A183: Behavior1 | B183: 1 | C183: 0.25 | D183: 72 | F183: 0 | G183: 0 | H183: 0 | I183: 0
A184: Behavior1 | B184: 2 | C184: 1.5 | D184: 433 | F184: 0 | G184: 0 | H184: 0 | I184: 0
A185: Behavior1 | B185: 3 | C185: 2 | D185: 578 | F185: 0 | G185: 0 | H185: 0 | I185: 0
A186: Behavior1 | B186: 4 | C186: 2 | D186: 578 | F186: 0 | G186: 0 | H186: 0 | I186: 0
A187: Behavior1 | B187: 5 | C187: 2 | D187: 578 | F187: 0 | G187: 0 | H187: 0 | I187: 0
A188: Behavior2 | B188: 0 | C188: 0 | D188: 0 | F188: 0 | G188: 0 | H188: 0 | I188: 0
A189: Behavior2 | B189: 1 | C189: 1 | D189: 289 | F189: 0 | G189: 0 | H189: 0 | I189: 0
A190: Behavior2 | B190: 2 | C190: 2 | D190: 578 | F190: 2 | G190: 578 | H190: 2 | I190: 578
A191: Behavior2 | B191: 3 | C191: 2 | D191: 578 | F191: 2 | G191: 578 | H191: 2 | I191: 578
A192: Behavior2 | B192: 4 | C192: 2 | D192: 578 | F192: 2 | G192: 578 | H192: 2 | I192: 578
A193: Behavior2 | B193: 5 | C193: 2 | D193: 578 | F193: 2 | G193: 578 | H193: 2 | I193: 578
A194: Behavior3 | B194: 0 | C194: 0 | D194: =ROUND(C194*30.41*9.5,0) -> 0 | F194: 0 | G194: 0 | H194: 0 | I194: 0
A195: Behavior3 | B195: 1 | C195: 0.25 | D195: 72 | F195: 0 | G195: 0 | H195: 0 | I195: 0
A196: Behavior3 | B196: 2 | C196: 1.5 | D196: 433 | F196: 0 | G196: 0 | H196: 1 | I196: 289
A197: Behavior3 | B197: 3 | C197: 2 | D197: 578 | F197: 0 | G197: 0 | H197: 1 | I197: 289
A198: Behavior3 | B198: 4 | C198: 2 | D198: 578 | F198: 0 | G198: 0 | H198: 1 | I198: 289
A199: Behavior3 | B199: 5 | C199: 2 | D199: 578 | F199: 0 | G199: 0 | H199: 1 | I199: 289
A200: Behavior4 | B200: 0 | C200: 0 | D200: =ROUND(C200*30.41*9.5,0) -> 0 | F200: 0 | G200: =ROUND(F200*30.41*9.5,0) -> 0 | H200: 0 | I200: =ROUND(H200*30.41*9.5,0) -> 0
... 13 more rows

Sheet HHRawScoring (hidden)
B1: From Assessment | C1: Real Scoring | D1: Exception? | E1: Hours | G1: From Assessment | H1: Real Scoring | I1: Exception? | J1: Hours | L1: From Assessment | M1: Real Scoring | N1: Exception? | O1: Hours | Q1: From Assessment | R1: Real Scoring | S1: Exception? | T1: Hours | W1: HostHomeConsideration# | X1: HostHome | Y1: HHResult
A2: ADL1 | B2: ='Raw Scoring'!B2 -> 0 | C2: =(IF(B2=5,4,B2)) -> 0 | D2: =IF(B2=5,"Yes","No") -> No | E2: =LOOKUP(C2,'New Scoring'!B2:B7,'New Scoring'!C2:C7) -> 0 | F2: Nighttime1 | G2: ='Raw Scoring'!G2 -> 0 | H2: =(IF(G2=5,4,G2)) -> 0 | I2: =IF(G2=5,"Yes","No") -> No | J2: =LOOKUP(H2,'New Scoring'!B74:B79,'New Scoring'!C74:C79) -> 0 | K2: Medical1 | L2: ='Raw Scoring'!L2 -> 0 | M2: =(IF(L2=5,4,L2)) -> 0 | N2: =IF(L2=5,"Yes","No") -> No | O2: =LOOKUP(M2,'New Scoring'!B86:B91,'New Scoring'!C86:C91) -> 0 | P2: Behavior1 | Q2: ='Raw Scoring'!Q2 -> 0 | R2: =(IF(R4>1,0,Q2)) -> 0 | S2: =IF(Q2=5,"Yes","No") -> No | T2: =LOOKUP(R2,'New Scoring'!B182:B187,'New Scoring'!C182:C187) -> 0 | W2: 1 | X2: ='Raw Scoring'!Z2 -> No | Y2: =IF(COUNTIF(X2:X36,"Yes")>0,"Yes","No") -> No
A3: ADL2 | B3: ='Raw Scoring'!B3 -> 0 | C3: =(IF(R6 > 2, 0, IF(B3=5,4,B3))) -> 0 | D3: =IF(B3=5,"Yes","No") -> No | E3: =LOOKUP(C3,'New Scoring'!B8:B13,'New Scoring'!C8:C13) -> 0 | F3: Nighttime2 | G3: ='Raw Scoring'!G3 -> 0 | H3: =(IF(G3=5,4,G3)) -> 0 | I3: =IF(G3=5,"Yes","No") -> No | J3: =LOOKUP(H3,'New Scoring'!B80:B85,'New Scoring'!C80:C85) -> 0 | K3: Medical2 | L3: ='Raw Scoring'!L3 -> 0 | M3: =(IF(L3=5,4,L3)) -> 0 | N3: =IF(L3=5,"Yes","No") -> No | O3: =LOOKUP(M3,'New Scoring'!B92:B97,'New Scoring'!C92:C97) -> 0 | P3: Behavior2 | Q3: ='Raw Scoring'!Q3 -> 0 | R3: =(IF(Q3=5,4,Q3)) -> 0 | S3: =IF(Q3=5,"Yes","No") -> No | T3: =LOOKUP(R3,'New Scoring'!B188:B193,'New Scoring'!C188:C193) -> 0 | W3: 2 | X3: ='Raw Scoring'!Z3 -> No | Y3: =COUNTIF(X2:X36,"Yes") -> 0
A4: ADL3 | B4: ='Raw Scoring'!B4 -> 0 | C4: =(IF(B4=5,4,B4)) -> 0 | D4: No | E4: =LOOKUP(C4,'New Scoring'!B14:B19,'New Scoring'!C14:C19) -> 0 | F4: Totals | G4: =G2+G3 -> 0 | H4: =MAX(H2:H3) -> 0 | I4: =COUNTIF(I2:I3,"Yes") -> 0 | J4: =SUM(J2:J3) -> 0 | K4: Medical3 | L4: ='Raw Scoring'!L4 -> 0 | M4: 0 | N4: No | O4: =LOOKUP(M4,'New Scoring'!B98:B103,'New Scoring'!C98:C103) -> 0 | P4: Behavior3 | Q4: ='Raw Scoring'!Q4 -> 0 | R4: =IF(V5 = 4,2,IF(V5>4,3,IF(Q4=5,4,Q4))) -> 0 | S4: =IF(Q4=7,"Yes","No") -> No | T4: =LOOKUP(R4,'New Scoring'!B194:B199,'New Scoring'!C194:C199) -> 0 | U4: BehaviorDupChecks | V4: =Q6+B3 -> 0 | W4: 3 | X4: ='Raw Scoring'!Z4 -> No
A5: ADL4 | B5: ='Raw Scoring'!B5 -> 0 | C5: =(IF(B5=5,4,B5)) -> 0 | D5: No | E5: =LOOKUP(C5,'New Scoring'!B20:B25,'New Scoring'!C20:C25) -> 0 | F5: Exception? | G5: =IF(I4>0,"Yes","No") -> No | K5: Medical4 | L5: ='Raw Scoring'!L5 -> 0 | M5: 0 | N5: No | O5: =LOOKUP(M5,'New Scoring'!B104:B109,'New Scoring'!C104:C109) -> 0 | P5: Behavior4 | Q5: ='Raw Scoring'!Q5 -> 0 | R5: =(IF(Q5=7,6,Q5)) -> 0 | S5: =IF(Q5=7,"Yes","No") -> No | T5: =LOOKUP(R5,'New Scoring'!B200:B207,'New Scoring'!C200:C207) -> 0 | V5: =Q2+Q4 -> 0 | W5: 4 | X5: ='Raw Scoring'!Z5 -> No
A6: ADL5 | B6: ='Raw Scoring'!B6 -> 0 | C6: 0 | D6: No | E6: =LOOKUP(C6,'New Scoring'!B26:B31,'New Scoring'!C26:C31) -> 0 | K6: Medical5 | L6: ='Raw Scoring'!L6 -> 0 | M6: 0 | N6: No | O6: =LOOKUP(M6,'New Scoring'!B110:B115,'New Scoring'!C110:C115) -> 0 | P6: Behavior5 | Q6: ='Raw Scoring'!Q6 -> 0 | R6: =IF(V4>6,IF(V4 = 7,2,4),IF(Q6=5,4,Q6)) -> 0 | S6: =IF(Q6=5,"Yes","No") -> No | T6: =LOOKUP(R6,'New Scoring'!B208:B213,'New Scoring'!C208:C213) -> 0 | W6: 5 | X6: ='Raw Scoring'!Z6 -> No
A7: ADL6 | B7: ='Raw Scoring'!B7 -> 0 | C7: 0 | D7: No | E7: =LOOKUP(C7,'New Scoring'!B32:B37,'New Scoring'!C32:C37) -> 0 | K7: Medical6 | L7: ='Raw Scoring'!L7 -> 0 | M7: 0 | N7: No | O7: =LOOKUP(M7,'New Scoring'!B116:B121,'New Scoring'!C116:C121) -> 0 | P7: Totals | Q7: =SUM(Q2:Q6) -> 0 | R7: =SUM(R2:R6) -> 0 | S7: =COUNTIF(S2:S6,"Yes") -> 0 | T7: =SUM(T2:T6) -> 0 | W7: 6 | X7: ='Raw Scoring'!Z7 -> No
A8: ADL7 | B8: ='Raw Scoring'!B8 -> 0 | C8: 0 | D8: No | E8: =LOOKUP(C8,'New Scoring'!B38:B43,'New Scoring'!C38:C43) -> 0 | K8: Medical7 | L8: ='Raw Scoring'!L8 -> 0 | M8: 0 | N8: No | O8: =LOOKUP(M8,'New Scoring'!B122:B127,'New Scoring'!C122:C127) -> 0 | P8: Exception? | Q8: =IF(S7>0,"Yes","No") -> No | W8: 7 | X8: ='Raw Scoring'!Z8 -> No
A9: ADL8 | B9: ='Raw Scoring'!B9 -> 0 | C9: 0 | D9: No | E9: =LOOKUP(C9,'New Scoring'!B44:B49,'New Scoring'!C44:C49) -> 0 | K9: Medical8 | L9: ='Raw Scoring'!L9 -> 0 | M9: 0 | N9: No | O9: =LOOKUP(M9,'New Scoring'!B128:B133,'New Scoring'!C128:C133) -> 0 | W9: 8 | X9: ='Raw Scoring'!Z9 -> No
A10: ADL9 | B10: ='Raw Scoring'!B10 -> 0 | C10: 0 | D10: No | E10: =LOOKUP(C10,'New Scoring'!B50:B55,'New Scoring'!C50:C55) -> 0 | K10: Medical9 | L10: ='Raw Scoring'!L10 -> 0 | M10: 0 | N10: =IF(Q11=5,"Yes","No") -> No | O10: =LOOKUP(M10,'New Scoring'!B134:B139,'New Scoring'!C134:C139) -> 0 | W10: 9 | X10: ='Raw Scoring'!Z10 -> No
A11: ADL10 | B11: ='Raw Scoring'!B11 -> 0 | C11: 0 | D11: No | E11: =LOOKUP(C11,'New Scoring'!B56:B61,'New Scoring'!C56:C61) -> 0 | K11: Medical10 | L11: ='Raw Scoring'!L11 -> 0 | M11: 0 | N11: No | O11: =LOOKUP(M11,'New Scoring'!B140:B145,'New Scoring'!C140:C145) -> 0 | P11: 2 person | Q11: ='Raw Scoring'!Q11 -> 0 | W11: 10 | X11: ='Raw Scoring'!Z11 -> No
A12: ADL11 | B12: ='Raw Scoring'!B12 -> 0 | C12: =(IF(B12=5,4,B12)) -> 0 | D12: No | E12: =LOOKUP(C12,'New Scoring'!B62:B67,'New Scoring'!C62:C67) -> 0 | K12: Medical11 | L12: ='Raw Scoring'!L12 -> 0 | M12: 0 | N12: No | O12: =LOOKUP(M12,'New Scoring'!B146:B151,'New Scoring'!C146:C151) -> 0 | W12: 11 | X12: ='Raw Scoring'!Z12 -> No
A13: ADL12 | B13: ='Raw Scoring'!B13 -> 0 | C13: =(IF(B13=5,4,B13)) -> 0 | D13: No | E13: =LOOKUP(C13,'New Scoring'!B68:B73,'New Scoring'!C68:C73) -> 0 | K13: Medical12 | L13: ='Raw Scoring'!L13 -> 0 | M13: 0 | N13: No | O13: =LOOKUP(M13,'New Scoring'!B152:B157,'New Scoring'!C152:C157) -> 0 | W13: 12 | X13: ='Raw Scoring'!Z13 -> No
A14: Totals | B14: =SUM(B2:B13) -> 0 | C14: =SUM(C2:C13) -> 0 | D14: =COUNTIF(D2:D13,"Yes") -> 0 | E14: =SUM(E2:E13) -> 0 | K14: Medical13 | L14: ='Raw Scoring'!L14 -> 0 | M14: 0 | N14: No | O14: =LOOKUP(M14,'New Scoring'!B158:B163,'New Scoring'!C158:C163) -> 0 | W14: 13 | X14: ='Raw Scoring'!Z14 -> No
A15: Exception? | B15: =IF(D14>0,"Yes","No") -> No | K15: Medical14 | L15: ='Raw Scoring'!L15 -> 0 | M15: 0 | N15: No | O15: =LOOKUP(M15,'New Scoring'!B164:B169,'New Scoring'!C164:C169) -> 0 | W15: 14 | X15: ='Raw Scoring'!Z15 -> No
K16: Medical15 | L16: ='Raw Scoring'!L16 -> 0 | M16: 0 | N16: No | O16: =LOOKUP(M16,'New Scoring'!B170:B175,'New Scoring'!C170:C175) -> 0 | W16: 15 | X16: ='Raw Scoring'!Z16 -> No
F17: Total | G17: DayTime Total | K17: Medical16 | L17: ='Raw Scoring'!L17 -> 0 | M17: 0 | N17: No | O17: =LOOKUP(M17,'New Scoring'!B176:B181,'New Scoring'!C176:C181) -> 0 | W17: 16 | X17: ='Raw Scoring'!Z17 -> No
B18: ADL | C18: Nighttime | D18: Medical | E18: Behavior | F18: =SUM(B19:E19) -> 0 | G18: =B19+D19+E19 -> 0 | K18: Totals | L18: =SUM(L2:L17) -> 0 | M18: =SUM(M2:M17) -> 0 | N18: =COUNTIF(N2:N17,"Yes") -> 0 | O18: =SUM(O2:O17) -> 0 | W18: 17 | X18: ='Raw Scoring'!Z18 -> No
A19: Hours | B19: =E14 -> 0 | C19: =J4 -> 0 | D19: =O18 -> 0 | E19: =T7 -> 0 | F19: =SUM(B20:E20) -> 0 | G19: =B20+D20+E20 -> 0 | W19: 18 | X19: ='Raw Scoring'!Z19 -> No
A20: Hours Adjusted | B20: =IF(B19>6,6,B19) -> 0 | C20: =IF(C19>7,7,C19) -> 0 | D20: =IF(D19>12,12,D19) -> 0 | E20: =IF(E19>12,12,E19) -> 0 | F20: =SUM(B21:E21) -> 0 | G20: =B21+D21+E21 -> 0 | K20: Exception? | L20: =IF(N18>0,"Yes","No") -> No | W20: 19 | X20: ='Raw Scoring'!Z20 -> No
A21: Hours Adjusted 2 | B21: =IF($G$19>17,(B20/$G$19)*17,B20) -> 0 | C21: =C20 -> 0 | D21: =IF($G$19>17,(D20/$G$19)*17,D20) -> 0 | E21: =IF($G$19>17,(E20/$G$19)*17,E20) -> 0 | F21: =SUM(B22:E22) -> 0 | G21: =B22+D22+E22 -> 0 | W21: 20 | X21: ='Raw Scoring'!Z21 -> No
A22: Hours Adjusted 3 | B22: =IF($F$20>24,(B21/$F$20)*24,B21) -> 0 | C22: =IF($F$20>24,(C21/$F$20)*24,C21) -> 0 | D22: =IF($F$20>24,(D21/$F$20)*24,D21) -> 0 | E22: =IF($F$20>24,(E21/$F$20)*24,E21) -> 0 | F22: 13.11 | W22: 21 | X22: ='Raw Scoring'!Z22 -> No
A23: Rate | B23: 13.82 | C23: 13.82 | D23: 13.82 | E23: 13.82 | F23: 30.41 | W23: 22 | X23: ='Raw Scoring'!Z23 -> No
A24: Days | B24: 30.41 | C24: 30.41 | D24: 30.41 | E24: 30.41 | F24: =ROUND(F20*F22*F23,0) -> 0 | W24: 23 | X24: ='Raw Scoring'!Z24 -> No
A25: Total | B25: =ROUND(B21*B23*B24,0) -> 0 | C25: =ROUND(C21*C23*C24,0) -> 0 | D25: =ROUND(D21*D23*D24,0) -> 0 | E25: =ROUND(E21*E23*E24,0) -> 0 | W25: 24 | X25: ='Raw Scoring'!Z25 -> No
W26: 25 | X26: ='Raw Scoring'!Z26 -> No
A27: Rates | E27: Exception Price | F27: =(D14+I4+N18+S7)*2*F22*F23 -> 0 | H27: Behavior Spec Criteria | J27: Hours | L27: RN Criteria | N27: Hours | W27: 26 | X27: ='Raw Scoring'!Z27 -> No
A28: Program Mngr | B28: 24.6 | E28: Respit | F28: =24*F22 -> 314.64 | H28: Q3 = 1 | I28: =IF(Q3=1, "Yes", "No") -> No | J28: =IF(I28 = "Yes", 2,0) -> 0 | L28: L9 = 2 | M28: =IF(L9 = 2, "Yes", "No") -> No | N28: =IF(M28 = "Yes", 2,0) -> 0 | W28: 27 | X28: ='Raw Scoring'!Z28 -> No
A29: Program Crrd | B29: 21.21 | E29: Program Mngr | F29: =4*B28 -> 98.4 | H29: Q3 = 2 | I29: =IF(Q3=2, "Yes", "No") -> No | J29: =IF(I29 = "Yes",4,0) -> 0 | L29: L10 = 1 | M29: =IF(L10 = 1, "Yes", "No") -> No | N29: =IF(M29 = "Yes", 2,0) -> 0 | W29: 28 | X29: ='Raw Scoring'!Z29 -> No
A30: Behavior Spec | B30: 32.94 | E30: Program Crrd | F30: =8*B29 -> 169.68 | H30: Q3 = 3 | I30: =IF(Q3=3, "Yes", "No") -> No | J30: =IF(I30 = "Yes", 4,0) -> 0 | L30: L10 = 2 | M30: =IF(L10 = 2, "Yes", "No") -> No | N30: =IF(M30 = "Yes", 2,0) -> 0 | W30: 29 | X30: ='Raw Scoring'!Z30 -> No
A31: RN | B31: 32.77 | E31: Behavior Spec | F31: =J31*B30 -> 0 | I31: Total | J31: =SUM(J28:J30) -> 0 | L31: L10 = 3 | M31: =IF(L10 = 3, "Yes", "No") -> No | N31: =IF(M31 = "Yes", 4,0) -> 0 | W31: 30 | X31: ='Raw Scoring'!Z31 -> No
A32: Initial Support | B32: 1500 | E32: RN | F32: =N33*B31 -> 0 | L32: L10 = 4 | M32: =IF(L10 = 4, "Yes", "No") -> No | N32: =IF(M32 = "Yes", 4,0) -> 0 | W32: 31 | X32: ='Raw Scoring'!Z32 -> No
E33: 0.12 | F33: =SUM(F27:F32,F24)*0.12 -> 69.9264 | M33: Total | N33: =SUM(N28:N32) -> 0 | W33: 32 | X33: ='Raw Scoring'!Z33 -> No
E34: sub-Total | F34: =ROUND(SUM(F27:F33,F24),0) -> 653 | W34: 33 | X34: ='Raw Scoring'!Z34 -> No
E35: Initial Support | F35: =B32 -> 1500 | W35: 34 | X35: ='Raw Scoring'!Z35 -> No
E36: Total | F36: =SUM(F34:F35) -> 2153 | W36: 35 | X36: ='Raw Scoring'!Z36 -> No

Sheet HHScoring (hidden)
A1: Category | B1: Assessment Score | C1: Corresponding Hours | E1: Pricing
A2: ADL1 | B2: 0 | C2: 0 | E2: =ROUND(C2*30.41*9.5,0) -> 0
A3: ADL1 | B3: 1 | C3: 1 | E3: =ROUND(C3*30.41*9.5,0) -> 289
A4: ADL1 | B4: 2 | C4: 1 | E4: 289
A5: ADL1 | B5: 3 | C5: 1 | E5: 289
A6: ADL1 | B6: 4 | C6: 2 | E6: 578
A7: ADL1 | B7: 5 | C7: 2 | E7: 578
A8: ADL2 | B8: 0 | C8: 0 | E8: 0
A9: ADL2 | B9: 1 | C9: 1 | E9: 289
A10: ADL2 | B10: 2 | C10: 1 | E10: 289
A11: ADL2 | B11: 3 | C11: 1 | E11: 289
A12: ADL2 | B12: 4 | C12: 2 | E12: 578
A13: ADL2 | B13: 5 | C13: 2 | E13: 578
A14: ADL3 | B14: 0 | C14: 0 | E14: 0
A15: ADL3 | B15: 1 | C15: 1 | E15: 289
A16: ADL3 | B16: 2 | C16: 1 | E16: 289
A17: ADL3 | B17: 3 | C17: 1 | E17: 289
A18: ADL3 | B18: 4 | C18: 2 | E18: 578
A19: ADL3 | B19: 5 | C19: 2 | E19: 578
A20: ADL4 | B20: 0 | C20: 0 | E20: 0
A21: ADL4 | B21: 1 | C21: 0.5 | E21: 144
A22: ADL4 | B22: 2 | C22: 2 | E22: 578
A23: ADL4 | B23: 3 | C23: 3 | E23: 867
A24: ADL4 | B24: 4 | C24: 3 | E24: 867
A25: ADL4 | B25: 5 | C25: 3 | E25: 867
A26: ADL5 | B26: 0 | C26: 0 | E26: 0
A27: ADL5 | B27: 1 | C27: 0 | E27: 0
A28: ADL5 | B28: 2 | C28: 0 | E28: 0
A29: ADL5 | B29: 3 | C29: 0.5 | E29: 144
A30: ADL5 | B30: 4 | C30: 1 | E30: 289
A31: ADL5 | B31: 5 | C31: 1 | E31: 289
A32: ADL6 | B32: 0 | C32: 0 | E32: 0
A33: ADL6 | B33: 1 | C33: 0 | E33: 0
A34: ADL6 | B34: 2 | C34: 0 | E34: 0
A35: ADL6 | B35: 3 | C35: 0.5 | E35: 144
A36: ADL6 | B36: 4 | C36: 2 | E36: 578
A37: ADL6 | B37: 5 | C37: 2 | E37: 578
A38: ADL7 | B38: 0 | C38: 0 | E38: 0
A39: ADL7 | B39: 1 | C39: 0 | E39: 0
A40: ADL7 | B40: 2 | C40: 0 | E40: 0
A41: ADL7 | B41: 3 | C41: 0.5 | E41: 144
A42: ADL7 | B42: 4 | C42: 2 | E42: 578
A43: ADL7 | B43: 5 | C43: 2 | E43: 578
A44: ADL8 | B44: 0 | C44: 0 | E44: 0
A45: ADL8 | B45: 1 | C45: 0 | E45: 0
A46: ADL8 | B46: 2 | C46: 0 | E46: 0
A47: ADL8 | B47: 3 | C47: 0.25 | E47: 72
A48: ADL8 | B48: 4 | C48: 0.5 | E48: 144
A49: ADL8 | B49: 5 | C49: 0.5 | E49: 144
A50: ADL9 | B50: 0 | C50: 0 | E50: 0
A51: ADL9 | B51: 1 | C51: 0 | E51: 0
A52: ADL9 | B52: 2 | C52: 0.25 | E52: 72
A53: ADL9 | B53: 3 | C53: 0.25 | E53: 72
A54: ADL9 | B54: 4 | C54: 1 | E54: 289
A55: ADL9 | B55: 5 | C55: 1 | E55: 289
A56: ADL10 | B56: 0 | C56: 0 | E56: 0
A57: ADL10 | B57: 1 | C57: 0 | E57: 0
A58: ADL10 | B58: 2 | C58: 0.25 | E58: 72
A59: ADL10 | B59: 3 | C59: 0.25 | E59: 72
A60: ADL10 | B60: 4 | C60: 0.25 | E60: 72
A61: ADL10 | B61: 5 | C61: 0.25 | E61: 72
A62: ADL11 | B62: 0 | C62: 0 | E62: 0
A63: ADL11 | B63: 1 | C63: 0 | E63: 0
A64: ADL11 | B64: 2 | C64: 0.167 | E64: 48
A65: ADL11 | B65: 3 | C65: 0.667 | E65: 193
A66: ADL11 | B66: 4 | C66: 0.667 | E66: 193
A67: ADL11 | B67: 5 | C67: 0.667 | E67: =ROUND(C67*30.41*9.5,0) -> 193
A68: ADL12 | B68: 0 | C68: 0 | E68: 0
A69: ADL12 | B69: 1 | C69: 0 | E69: 0
A70: ADL12 | B70: 2 | C70: 0.083 | E70: 24
A71: ADL12 | B71: 3 | C71: 0.333 | E71: 96
A72: ADL12 | B72: 4 | C72: 0.333 | E72: 96
A73: ADL12 | B73: 5 | C73: 0.333 | E73: =ROUND(C73*30.41*9.5,0) -> 96
A74: Nighttime1 | B74: 0 | C74: 0 | E74: 0
A75: Nighttime1 | B75: 1 | C75: 1 | E75: 289
A76: Nighttime1 | B76: 2 | C76: 3 | E76: 867
A77: Nighttime1 | B77: 3 | C77: 6 | E77: 1733
A78: Nighttime1 | B78: 4 | C78: 7 | E78: 2022
A79: Nighttime1 | B79: 5 | C79: 7 | E79: 2022
A80: Nighttime2 | B80: 0 | C80: 0 | E80: 0
A81: Nighttime2 | B81: 1 | C81: 1 | E81: 289
A82: Nighttime2 | B82: 2 | C82: 3 | E82: 867
A83: Nighttime2 | B83: 3 | C83: 6 | E83: 1733
A84: Nighttime2 | B84: 4 | C84: 7 | E84: 2022
A85: Nighttime2 | B85: 5 | C85: 7 | E85: 2022
A86: Medical1 | B86: 0 | C86: 0 | E86: 0
A87: Medical1 | B87: 1 | C87: 0 | E87: 0
A88: Medical1 | B88: 2 | C88: 1 | E88: 289
A89: Medical1 | B89: 3 | C89: 1 | E89: 289
A90: Medical1 | B90: 4 | C90: 1 | E90: 289
A91: Medical1 | B91: 5 | C91: 1 | E91: 289
A92: Medical2 | B92: 0 | C92: 0 | E92: 0
A93: Medical2 | B93: 1 | C93: 0 | E93: 0
A94: Medical2 | B94: 2 | C94: 1 | E94: 289
A95: Medical2 | B95: 3 | C95: 1 | E95: 289
A96: Medical2 | B96: 4 | C96: 1 | E96: 289
A97: Medical2 | B97: 5 | C97: 1 | E97: 289
A98: Medical3 | B98: 0 | C98: 0 | E98: 0
A99: Medical3 | B99: 1 | C99: 0 | E99: 0
A100: Medical3 | B100: 2 | C100: 1.5 | E100: 433
A101: Medical3 | B101: 3 | C101: 1.5 | E101: 433
A102: Medical3 | B102: 4 | C102: 1.5 | E102: 433
A103: Medical3 | B103: 5 | C103: 1.5 | E103: 433
A104: Medical4 | B104: 0 | C104: 0 | E104: 0
A105: Medical4 | B105: 1 | C105: 0 | E105: 0
A106: Medical4 | B106: 2 | C106: 0.05 | E106: 14
A107: Medical4 | B107: 3 | C107: 0.05 | E107: 14
A108: Medical4 | B108: 4 | C108: 0.05 | E108: 14
A109: Medical4 | B109: 5 | C109: 0.05 | E109: 14
A110: Medical5 | B110: 0 | C110: 0 | E110: 0
A111: Medical5 | B111: 1 | C111: 0.5 | E111: 144
A112: Medical5 | B112: 2 | C112: 1 | E112: 289
A113: Medical5 | B113: 3 | C113: 1 | E113: 289
A114: Medical5 | B114: 4 | C114: 1 | E114: 289
A115: Medical5 | B115: 5 | C115: 1 | E115: 289
A116: Medical6 | B116: 0 | C116: 0 | E116: 0
A117: Medical6 | B117: 1 | C117: 0.5 | E117: 144
A118: Medical6 | B118: 2 | C118: 1 | E118: 289
A119: Medical6 | B119: 3 | C119: 1 | E119: 289
A120: Medical6 | B120: 4 | C120: 1 | E120: 289
A121: Medical6 | B121: 5 | C121: 1 | E121: 289
A122: Medical7 | B122: 0 | C122: 0 | E122: 0
A123: Medical7 | B123: 1 | C123: 0 | E123: 0
A124: Medical7 | B124: 2 | C124: 0 | E124: 0
A125: Medical7 | B125: 3 | C125: 0.5 | E125: 144
A126: Medical7 | B126: 4 | C126: 1 | E126: 289
A127: Medical7 | B127: 5 | C127: 1 | E127: 289
A128: Medical8 | B128: 0 | C128: 0 | E128: 0
A129: Medical8 | B129: 1 | C129: 0.25 | E129: 72
A130: Medical8 | B130: 2 | C130: 0.5 | E130: 144
A131: Medical8 | B131: 3 | C131: 0.5 | E131: 144
A132: Medical8 | B132: 4 | C132: 0.5 | E132: 144
A133: Medical8 | B133: 5 | C133: 0.5 | E133: 144
A134: Medical9 | B134: 0 | C134: 0 | E134: 0
A135: Medical9 | B135: 1 | C135: 1 | E135: 289
A136: Medical9 | B136: 2 | C136: 2 | E136: 578
A137: Medical9 | B137: 3 | C137: 6 | E137: =ROUND(C137*30.41*9.5,0) -> 1733
A138: Medical9 | B138: 4 | C138: 12 | E138: 3467
A139: Medical9 | B139: 5 | C139: 12 | E139: 3467
A140: Medical10 | B140: 0 | C140: 0 | E140: 0
A141: Medical10 | B141: 1 | C141: 0.035 | E141: 10
A142: Medical10 | B142: 2 | C142: 0.0877 | E142: 25
A143: Medical10 | B143: 3 | C143: 0.0877 | E143: 25
A144: Medical10 | B144: 4 | C144: 0.0877 | E144: 25
A145: Medical10 | B145: 5 | C145: 0.0877 | E145: 25
A146: Medical11 | B146: 0 | C146: 0 | E146: 0
A147: Medical11 | B147: 1 | C147: 0 | E147: 0
A148: Medical11 | B148: 2 | C148: 0 | D148: =(10/30)/9.5 -> 0.0350877193 | E148: 0
A149: Medical11 | B149: 3 | C149: 0 | E149: 0
A150: Medical11 | B150: 4 | C150: 0 | E150: 0
A151: Medical11 | B151: 5 | C151: 0 | E151: 0
A152: Medical12 | B152: 0 | C152: 0 | E152: 0
A153: Medical12 | B153: 1 | C153: 0 | E153: 0
A154: Medical12 | B154: 2 | C154: 0 | E154: 0
A155: Medical12 | B155: 3 | C155: 0.1747 | E155: 50
A156: Medical12 | B156: 4 | C156: 0.1747 | E156: 50
A157: Medical12 | B157: 5 | C157: 0.1747 | E157: 50
A158: Medical13 | B158: 0 | C158: 0 | E158: 0
A159: Medical13 | B159: 1 | C159: 0 | E159: 0
A160: Medical13 | B160: 2 | C160: 0.1747 | E160: 50
A161: Medical13 | B161: 3 | C161: 0.1747 | E161: 50
A162: Medical13 | B162: 4 | C162: 0.1747 | E162: 50
A163: Medical13 | B163: 5 | C163: 0.1747 | E163: 50
A164: Medical14 | B164: 0 | C164: 0 | E164: 0
A165: Medical14 | B165: 1 | C165: 0 | E165: 0
A166: Medical14 | B166: 2 | C166: 0.0877 | E166: 25
A167: Medical14 | B167: 3 | C167: 0.346 | E167: 100
A168: Medical14 | B168: 4 | C168: 0.346 | E168: 100
A169: Medical14 | B169: 5 | C169: 0.346 | E169: 100
A170: Medical15 | B170: 0 | C170: 0 | E170: 0
A171: Medical15 | B171: 1 | C171: 0.0877 | E171: 25
A172: Medical15 | B172: 2 | C172: 0.0877 | E172: 25
A173: Medical15 | B173: 3 | C173: 0.1747 | E173: 50
A174: Medical15 | B174: 4 | C174: 0.1747 | E174: 50
A175: Medical15 | B175: 5 | C175: 0.1747 | E175: 50
A176: Medical16 | B176: 0 | C176: 0 | E176: 0
A177: Medical16 | B177: 1 | C177: 0.035 | E177: 10
A178: Medical16 | B178: 2 | C178: 0.0877 | E178: 25
A179: Medical16 | B179: 3 | C179: 0.1747 | E179: 50
A180: Medical16 | B180: 4 | C180: 0.346 | E180: 100
A181: Medical16 | B181: 5 | C181: 0.346 | E181: 100
A182: Behavior1 | B182: 0 | C182: 0 | E182: 0
A183: Behavior1 | B183: 1 | C183: 0.25 | E183: 72
A184: Behavior1 | B184: 2 | C184: 1.5 | E184: 433
A185: Behavior1 | B185: 3 | C185: 2 | E185: 578
A186: Behavior1 | B186: 4 | C186: 2 | E186: 578
A187: Behavior1 | B187: 5 | C187: 2 | E187: 578
A188: Behavior2 | B188: 0 | C188: 0 | E188: 0
A189: Behavior2 | B189: 1 | C189: 1 | E189: 289
A190: Behavior2 | B190: 2 | C190: 2 | E190: 578
A191: Behavior2 | B191: 3 | C191: 2 | E191: 578
A192: Behavior2 | B192: 4 | C192: 2 | E192: 578
A193: Behavior2 | B193: 5 | C193: 2 | E193: 578
A194: Behavior3 | B194: 0 | C194: 0 | E194: 0
A195: Behavior3 | B195: 1 | C195: 0.25 | E195: 72
A196: Behavior3 | B196: 2 | C196: 1.5 | E196: 433
A197: Behavior3 | B197: 3 | C197: 2 | E197: 578
A198: Behavior3 | B198: 4 | C198: 2 | E198: 578
A199: Behavior3 | B199: 5 | C199: 2 | E199: 578
A200: Behavior4 | B200: 0 | C200: 0 | E200: 0
... 13 more rows
